Workbook

Sheet 1. Info
AB1: Algoma Power Inc.
AB2: Atikokan Hydro Inc.
AB3: Attawapiskat Power Corporation
AB4: Bluewater Power Distribution Corporation
AB5: Brant County Power Inc.
AB6: Brantford Power Inc.
AB7: Burlington Hydro Inc.
AB8: Cambridge and North Dumfries Hydro Inc.
AB9: Canadian Niagara Power Inc.
AB10: Centre Wellington Hydro Ltd.
AB11: Chapleau Public Utilities Corporation
AB12: COLLUS PowerStream Corp.
A13: Drop-down lists are shaded blue; Input cells are shaded green. | AB13: Cooperative Hydro Embrun Inc.
AB14: E.L.K. Energy Inc.
C15: Utility Name | D15: Lakefront Utilities Inc. | AB15: Enersource Hydro Mississauga Inc.
AB16: Entegrus Powerlines Inc.
C17: Service Territory | D17: Town of Cobourg/Village of Colborne | AB17: EnWin Utilities Ltd.
AB18: Erie Thames Powerlines Corporation
C19: Assigned EB Number | D19: EB-2016-0000 | AB19: Espanola Regional Hydro Distribution Corporation
AB20: Essex Powerlines Corporation
C21: Name and Title | D21: Adam Giddings, Manager of Regulatory and Finance | AB21: Festival Hydro Inc.
AB22: Fort Albany Power Corporation
C23: Phone Number | D23: 905-372-2193 ext:5242 | AB23: Fort Frances Power Corporation
AB24: Greater Sudbury Hydro Inc.
C25: Email Address | D25: agiddings@lusi.on.ca | AB25: Grimsby Power Inc.
AB26: Guelph Hydro Electric Systems Inc.
C27: Date | AB27: Haldimand County Hydro Inc.
AB28: Halton Hills Hydro Inc.
C29: Last COS Re-based Year | D29: 2012 | AB29: Hearst Power Distribution Company Limited
AB30: Horizon Utilities Corporation
AB31: Hydro 2000 Inc.
AB32: Hydro Hawkesbury Inc.
AB33: Hydro One Brampton Networks Inc.
AB34: Hydro One Networks Inc.
AB35: Hydro One Remote Communities Inc.
AB36: Hydro Ottawa Limited
AB37: Innpower Corporation
AB38: Kashechewan Power Corporation
AB39: Kenora Hydro Electric Corporation Ltd.
AB40: Kingston Hydro Corporation
AB41: Kitchener-Wilmot Hydro Inc.
AB42: Lakefront Utilities Inc.
AB43: Lakeland Power Distribution Ltd.
AB44: London Hydro Inc.
AB45: Midland Power Utility Corporation
AB46: Milton Hydro Distribution Inc.
AB47: Newmarket-Tay Power Distribution Ltd.
AB48: Niagara Peninsula Energy Inc.
AB49: Niagara-on-the-Lake Hydro Inc.
AB50: Norfolk Power Distribution Inc.
AB51: North Bay Hydro Distribution Limited
AB52: Northern Ontario Wires Inc.
AB53: Oakville Hydro Electricity Distribution Inc.
AB54: Orangeville Hydro Limited
AB55: Orillia Power Distribution Corporation
AB56: Oshawa PUC Networks Inc.
AB57: Ottawa River Power Corporation
AB58: Peterborough Distribution Incorporated
AB59: PowerStream Inc.
AB60: PUC Distribution Inc.
AB61: Renfrew Hydro Inc.
AB62: Rideau St. Lawrence Distribution Inc.
AB63: Sioux Lookout Hydro Inc.
AB64: St. Thomas Energy Inc.
AB65: Thunder Bay Hydro Electricity Distribution Inc.
AB66: Tillsonburg Hydro Inc.
AB67: Toronto Hydro-Electric System Limited
AB68: Veridian Connections Inc.
AB69: Wasaga Distribution Inc.
AB70: Waterloo North Hydro Inc.
AB71: Welland Hydro-Electric System Corp.
AB72: Wellington North Power Inc.
AB73: West Coast Huron Energy Inc.
AB74: Westario Power Inc.
AB75: Whitby Hydro Electric Corporation
AB76: Woodstock Hydro Services Inc.

Sheet 2. Table of Contents
D20: 1. Info | I20: 6. Historical Wholesale
D22: 2. Table of Contents | I22: 7. Current Wholesale
D24: 3. Rate Classes | I24: 8. Forecast Wholesale
D26: 4. RRR Data | I26: 9. RTSR Rates to Forecast
D28: 5. UTRs and Sub-Transmission

Sheet 3. Rate Classes
C13: 1. Select the appropriate rate classes that appear on your most recent Board-Approved Tariff of Rates and Charges. 2. Enter the RTS Network and Connection Rate as it appears on the Tariff of Rates and Charges
C15: Rate Class | E15: Unit | G15: RTSR-Network | I15: RTSR-Connection
C17: Residential | E17: kWh | G17: 0.0059 | I17: 0.0045 | L17: =IF(OR(ISBLANK(C17), ISERROR(FIND("Choose", C17))=FALSE), 0, 1) -> 1 | M17: ="C" & ROW(C17) -> C17 | N17: =IF(OR(C17="General Service Intermediate Rate Class 1,000 To 4,999 kW (formerly General Service > 50 kW Customers)", C17="General Service Intermediate Rate Class 1,000 To 4,999 kW (formerly Large Use Customers)"), "x", "") ->  | W17: Choose Rate Class
C18: General Service Less Than 50 kW | E18: kWh | G18: 0.0054 | I18: 0.0041 | L18: 1 | M18: C18 | N18: =IF(OR(C18="General Service Intermediate Rate Class 1,000 To 4,999 kW (formerly General Service > 50 kW Customers)", C18="General Service Intermediate Rate Class 1,000 To 4,999 kW (formerly Large Use Customers)"), "x", "") ->  | W18: Residential
C19: General Service 50 to 2,999 kW | E19: kW | G19: 2.1729 | I19: 1.6392 | L19: 1 | M19: C19 | W19: Residential Regular
C20: General Service 3,000 to 4,999 kW | E20: kW | G20: 2.4302 | I20: 1.9334 | L20: 1 | M20: C20 | W20: Residential Urban
C21: Street Lighting | E21: kW | G21: 1.6388 | I21: 1.2672 | L21: 1 | M21: C21 | W21: Residential Urban Year-Round
C22: Sentinel Lighting | E22: kW | G22: 1.6468 | I22: 1.2937 | L22: 1 | M22: C22 | W22: Residential Suburban
C23: Unmetered Scattered Load | E23: kWh | G23: 0.0062 | I23: 0.0051 | L23: 1 | M23: C23 | W23: Residential Suburban Seasonal
C24: Choose Rate Class | L24: 0 | M24: C24 | W24: Residential Suburban Year Round
C25: Choose Rate Class | L25: 0 | M25: C25 | W25: Residential - Time of Use
C26: Choose Rate Class | L26: 0 | M26: C26 | W26: Residential - Hensall
C27: Choose Rate Class | L27: 0 | M27: C27 | W27: Residential – High Density [R1]
C28: Choose Rate Class | L28: 0 | M28: C28 | W28: Residential – Normal Density [R2]
C29: Choose Rate Class | L29: 0 | M29: C29 | W29: Seasonal Residential – High Density [R3]
C30: Choose Rate Class | L30: 0 | M30: C30 | W30: Seasonal Residential – Normal Density [R4]
C31: Choose Rate Class | L31: 0 | M31: C31 | W31: Residential – Urban [UR]
C32: Choose Rate Class | L32: 0 | M32: C32 | W32: General Service Less Than 50 kW
C33: Choose Rate Class | L33: 0 | M33: C33 | W33: General Service Less Than 50 kW – Single Phase energy-billed [G1]
C34: Choose Rate Class | L34: 0 | M34: C34 | W34: General Service Less Than 50 kW – Three Phase energy-billed [G3]
C35: Choose Rate Class | L35: 0 | M35: C35 | W35: General Service Less Than 50 kW – Transmission Class energy-billed [T]
C36: Choose Rate Class | L36: 0 | M36: C36 | W36: General Service Less Than 50 kW – Urban energy-billed [UG]
C37: Choose Rate Class | L37: 0 | M37: C37 | W37: Westport Sewage Treatment Plant
C38: Choose Rate Class | L38: 0 | M38: C38 | W38: Small Commercial and USL - per meter
N39: =COUNTIF(N17:N38, "x") -> 0 | W39: Small Commercial and USL - per connection
W40: Farms – Single Phase energy-billed [F1]
W41: General Service 50 to 499 kW
W42: General Service 50 to 699 kW
W43: General Service 50 to 999 kW
W44: General Service 50 to 999 kW - Interval Metered
W45: General Service 50 to 1,000 kW
W46: General Service 50 to 1,000 kW - Interval Meters
W47: General Service 50 to 1,000 kW - Non Interval Meters
W48: General Service 50 to 1,499 kW
W49: General Service 50 to 1,499 kW - Interval Metered
W50: General Service 50 to 2,499 kW
W51: General Service 50 to 2,999 kW
W52: General Service 50 to 2,999 kW - Time of Use
W53: General Service 50 to 4,999 kW
W54: General Service 50 to 4,999 kW – Interval Metered
W55: General Service 50 to 4,999 kW - Time of Use
W56: General Service 50 to 4,999 kW (CoGeneration)
W57: General Service 50 to 4,999 kW (formerly Time of Use)
W58: General Service 500 to 4,999 kW
W59: General Service 700 to 4,999 kW
W60: General Service 1,000 to 2,999 kW
W61: General Service 1,000 to 4,999 kW
W62: General Service 1,000 to 4,999 kW - Interval Meters
W63: General Service 1,000 To 4,999 kW (co-generation)
W64: General Service Greater Than 1,000 kW
W65: General Service Intermediate Rate Class 1,000 To 4,999 kW (formerly Large Use Customers)
W66: General Service Intermediate Rate Class 1,000 To 4,999 kW (formerly General Service > 50 kW Customers)
W67: General Service 1,500 to 4,999 kW
W68: General Service Equal To Or Greater Than 1,500 kW
W69: General Service Equal To Or Greater Than 1,500 kW - Interval Metered
W70: General Service Intermediate 1,000 To 4,999 kW
W71: General Service 2,500 to 4,999 kW
W72: General Service 3,000 to 4,999 kW
W73: General Service 3,000 to 4,999 kW - Interval Metered
W74: General Service 3,000 to 4,999 kW - Intermediate Use
W75: General Service 3,000 to 4,999 kW - Time of Use
W76: Intermediate With Self Generation
W77: General Service - Commercial
W78: General Service - Institutional
W79: Farms – Three Phase energy-billed [F3]
W80: Large Use
W81: Large Use - Regular
W82: Large Use > 5000 kW
W83: Large Use - 3TS
W84: Large Use - Ford Annex
W85: Unmetered Scattered Load
W86: Sentinel Lighting
W87: Street Lighting
W88: Embedded Distributor
W89: Low Voltage Wheeling Charge Rate
W90: Stand-By
W91: Standby Power
W92: Standby Power – INTERIM APPROVAL
W93: Standby Power - APPROVED ON AN INTERIM BASIS
W94: Standby - General Service 50 - 1,000 kW
W95: Standby Power General Service 50 to 1,499 kW
W96: Standby - General Service 1,000 - 5,000 kW
W97: Standby Power General Service 1,500 to 4,999 kW
W98: Standby - Large Use
W99: Standby Power General Service Large Use
W100: Standby Distribution Service

Sheet 4. RRR Data
B15: Rate Class | C15: Rate Description | D15: Unit | E15: Rate | F15: Non-Loss Adjusted Metered kWh | G15: Non-Loss Adjusted Metered kW | H15: Applicable Loss Factor eg: (1.0325) | I15: Loss Adjusted Billed kWh
B17: Residential | C17: RTSR - Network | D17: kWh | E17: 0.0059 | F17: 77564089.1 | H17: 1.0441 | I17: =F17*H17 -> 80984665.43
B18: Residential | C18: RTSR - Connection | D18: kWh | E18: 0.0045 | F18: 77564089.1 | H18: 1.0441 | I18: =F18*H18 -> 80984665.43
B19: General Service Less Than 50 kW | C19: RTSR - Network | D19: kWh | E19: 0.0054 | F19: 32059727.78 | H19: 1.0441 | I19: =F19*H19 -> 33473561.78
B20: General Service Less Than 50 kW | C20: RTSR - Connection | D20: kWh | E20: 0.0041 | F20: 32059727.78 | H20: 1.0441 | I20: =F20*H20 -> 33473561.78
B21: General Service 50 to 2,999 kW | C21: RTSR - Network | D21: kW | E21: 2.1729 | F21: 114771267.8 | G21: 289868.6458
B22: General Service 50 to 2,999 kW | C22: RTSR - Connection | D22: kW | E22: 1.6392 | F22: 114771267.8 | G22: 289868.6458
B23: General Service 3,000 to 4,999 kW | C23: RTSR - Network | D23: kW | E23: 2.4302 | F23: 14825705.44 | G23: 39488.80016
B24: General Service 3,000 to 4,999 kW | C24: RTSR - Connection | D24: kW | E24: 1.9334 | F24: 14825705.44 | G24: 39488.80016
B25: Street Lighting | C25: RTSR - Network | D25: kW | E25: 1.6388 | F25: 1428548.08 | G25: 3837.266592
B26: Street Lighting | C26: RTSR - Connection | D26: kW | E26: 1.2672 | F26: 1428548.08 | G26: 3837.266592
B27: Sentinel Lighting | C27: RTSR - Network | D27: kW | E27: 1.6468 | F27: 43471.55024 | G27: 132.2660924
B28: Sentinel Lighting | C28: RTSR - Connection | D28: kW | E28: 1.2937 | F28: 43471.55024 | G28: 132.2660924
B29: Unmetered Scattered Load | C29: RTSR - Network | D29: kWh | E29: 0.0062 | F29: 597466.4466 | H29: 1.0441 | I29: =F29*H29 -> 623814.7169
B30: Unmetered Scattered Load | C30: RTSR - Connection | D30: kWh | E30: 0.0051 | F30: 597466.4466 | H30: 1.0441 | I30: =F30*H30 -> 623814.7169

Sheet 5. UTRs and Sub-Transmission
B18: Uniform Transmission Rates | C18: Unit | E18: Effective January 1, 2014 | G18: Effective January 1, 2015 | I18: Effective January 1, 2016
B20: Rate Description | E20: Rate | G20: Rate | I20: Rate
B22: Network Service Rate | C22: kW | E22: 3.82 | G22: 3.78 | I22: 3.66
B24: Line Connection Service Rate | C24: kW | E24: 0.82 | G24: 0.86 | I24: 0.87
B26: Transformation Connection Service Rate | C26: kW | E26: 1.98 | G26: 2 | I26: 2.02
B29: Hydro One Sub-Transmission Rates | C29: Unit | E29: Effective January 1, 2014 to April 30, 2015 | G29: Effective May 1, 2015 | I29: Effective January 1, 2016
B33: Rate Description | E33: Rate | G33: Rate | I33: Rate
B35: Network Service Rate | C35: kW | E35: 3.23 | G35: 3.4121 | I35: 3.34
B37: Line Connection Service Rate | C37: kW | E37: 0.65 | G37: 0.7879 | I37: 0.78
B39: Transformation Connection Service Rate | C39: kW | E39: 1.62 | G39: 1.8018 | I39: 1.77
B41: Both Line and Transformation Connection Service Rate | C41: kW | E41: =SUM(E39,E37) -> 2.27 | G41: =SUM(G39,G37) -> 2.5897 | I41: =SUM(I39,I37) -> 2.55
B44: If needed, add extra host here. (I) | C44: Unit | E44: Effective January 1, 2014 | G44: Effective January 1, 2015 | I44: Effective January 1, 2016
B48: Rate Description | E48: Rate | G48: Rate | I48: Rate
B50: Network Service Rate | C50: kW
B52: Line Connection Service Rate | C52: kW
B54: Transformation Connection Service Rate | C54: kW
B56: Both Line and Transformation Connection Service Rate | C56: kW | E56: =SUM(E52,E54) -> 0 | G56: =SUM(G52,G54) -> 0 | I56: =I54+I52 -> 0
B59: If needed, add extra host here. (II) | C59: Unit | E59: Effective January 1, 2014 | G59: Effective January 1, 2015 | I59: Effective January 1, 2016
B63: Rate Description | E63: Rate | G63: Rate | I63: Rate
B65: Network Service Rate | C65: kW
B67: Line Connection Service Rate | C67: kW
B69: Transformation Connection Service Rate | C69: kW
B71: Both Line and Transformation Connection Service Rate | C71: kW | E71: =SUM(E67,E69) -> 0 | G71: =SUM(G67,G69) -> 0 | I71: =I69+I67 -> 0
B75: Hydro One Sub-Transmission Rate Rider 9A | C75: Unit | E75: Effective January 1, 2014 | G75: Effective January 1, 2015 | I75: Effective January 1, 2016
B77: Rate Description | E77: Rate | G77: Rate | I77: Rate
B79: RSVA Transmission network – 4714 – which affects 1584 | C79: kW | E79: 0.1465 | G79: 0 | I79: 0
B81: RSVA Transmission connection – 4716 – which affects 1586 | C81: kW | E81: 0.0667 | G81: 0 | I81: 0
B83: RSVA LV – 4750 – which affects 1550 | C83: kW | E83: 0.0475 | G83: 0 | I83: 0
B85: RARA 1 – 2252 – which affects 1590 | C85: kW | E85: 0.0419 | G85: 0 | I85: 0
B87: RARA 1 – 2252 – which affects 1590 (2008) | C87: kW | E87: -0.027 | G87: 0 | I87: 0
B89: RARA 1 – 2252 – which affects 1590 (2009) | C89: kW | E89: -0.0006 | G89: 0 | I89: 0
B91: Hydro One Sub-Transmission Rate Rider 9A | C91: kW | E91: 0.275 | G91: 0 | I91: =SUM(I79:I89) -> 0
E94: Historical 2014 | G94: Current 2015 | I94: Forecast 2016
B95: Low Voltage Switchgear Credit (if applicable, enter as a negative value) | C95: $

Sheet 6. Historical Wholesale
B21: IESO | D21: Network | H21: Line Connection | L21: Transformation Connection | P21: Total Line
B22: Month | D22: Units Billed | E22: Rate | F22: Amount | H22: Units Billed | I22: Rate | J22: Amount | L22: Units Billed | M22: Rate | N22: Amount | P22: Amount
B24: January | E24: =IF(D24<>0,F24/D24,0) -> 0 | I24: =IF(H24<>0,J24/H24,0) -> 0 | M24: =IF(L24<>0,N24/L24,0) -> 0 | P24: =J24+N24 -> 0
B25: February | E25: =IF(D25<>0,F25/D25,0) -> 0 | I25: =IF(H25<>0,J25/H25,0) -> 0 | M25: =IF(L25<>0,N25/L25,0) -> 0 | P25: 0
B26: March | E26: 0 | I26: 0 | M26: 0 | P26: 0
B27: April | E27: 0 | I27: 0 | M27: 0 | P27: 0
B28: May | E28: 0 | I28: 0 | M28: 0 | P28: 0
B29: June | E29: 0 | I29: 0 | M29: 0 | P29: 0
B30: July | E30: 0 | I30: 0 | M30: 0 | P30: 0
B31: August | E31: 0 | I31: 0 | M31: 0 | P31: 0
B32: September | E32: 0 | I32: 0 | M32: 0 | P32: 0
B33: October | E33: 0 | I33: 0 | M33: 0 | P33: 0
B34: November | E34: 0 | I34: 0 | M34: 0 | P34: 0
B35: December | E35: 0 | I35: 0 | M35: 0 | P35: 0
B37: Total | D37: =SUM(D24:D35) -> 0 | E37: =IF(D37<>0,F37/D37,0) -> 0 | F37: =SUM(F24:F35) -> 0 | H37: =SUM(H24:H35) -> 0 | I37: =IF(H37<>0,J37/H37,0) -> 0 | J37: =SUM(J24:J35) -> 0 | L37: =SUM(L24:L35) -> 0 | M37: =IF(L37<>0,N37/L37,0) -> 0 | N37: =SUM(N24:N35) -> 0 | P37: =SUM(P24:P35) -> 0
B39: Hydro One | D39: Network | H39: Line Connection | L39: Transformation Connection | P39: Total Line
B41: Month | D41: Units Billed | E41: Rate | F41: Amount | H41: Units Billed | I41: Rate | J41: Amount | L41: Units Billed | M41: Rate | N41: Amount | P41: Amount
B43: January | D43: 42972.13 | E43: =IF(D43<>0,F43/D43,0) -> 0.6499998953 | F43: 27931.88 | H43: 42972.13 | I43: =IF(H43<>0,J43/H43,0) -> 1.619999986 | J43: 69614.85 | L43: 42972.13 | M43: =IF(L43<>0,N43/L43,0) -> 2.270000114 | N43: 97546.74 | P43: =J43+N43 -> 167161.59
B44: February | D44: 43037.08 | E44: =IF(D44<>0,F44/D44,0) -> 0.6499999535 | F44: 27974.1 | H44: 43037.08 | I44: =IF(H44<>0,J44/H44,0) -> 1.620000009 | J44: 69720.07 | L44: 43037.08 | M44: =IF(L44<>0,N44/L44,0) -> 2.269999963 | N44: 97694.17 | P44: 167414.24
B45: March | D45: 40226.95 | E45: 0.6500000621 | F45: 26147.52 | H45: 40226.95 | I45: 1.620000025 | J45: 65167.66 | L45: 40226.95 | M45: 2.270000087 | N45: 91315.18 | P45: 156482.84
B46: April | D46: 36578.05 | E46: 0.6499999317 | F46: 23775.73 | H46: 36578.05 | I46: 1.619999973 | J46: 59256.44 | L46: 36578.05 | M46: 2.269999904 | N46: 83032.17 | P46: 142288.61
B47: May | D47: 33429.55 | E47: 0.7878999269 | F47: 26339.14 | H47: 33429.55 | I47: 1.801799905 | J47: 60233.36 | L47: 33429.55 | M47: 2.589700131 | N47: 86572.51 | P47: 146805.87
B48: June | D48: 34675.47 | E48: 0.7878999189 | F48: 27320.8 | H48: 34675.47 | I48: 1.801799947 | J48: 62478.26 | L48: 34675.47 | M48: 2.589699866 | N48: 89799.06 | P48: 152277.32
B49: July | D49: 38028.69 | E49: 0.7878998724 | F49: 29962.8 | H49: 38028.69 | I49: 1.801799904 | J49: 68520.09 | L49: 38028.69 | M49: 2.58970004 | N49: 98482.9 | P49: 167002.99
B50: August | D50: 42082.16 | E50: 0.7878999082 | F50: 33156.53 | H50: 42082.16 | I50: 1.801800098 | J50: 75823.64 | L50: 42082.16 | M50: 2.589700006 | N50: 108980.17 | P50: 184803.81
B51: September | D51: 41464.12 | E51: 0.7878999964 | F51: 32669.58 | H51: 41464.12 | I51: 1.801799966 | J51: 74710.05 | L51: 41464.12 | M51: 2.589699962 | N51: 107379.63 | P51: 182089.68
B52: October | D52: 34571.14 | E52: 0.7878999651 | F52: 27238.6 | H52: 34571.14 | I52: 1.801799998 | J52: 62290.28 | L52: 34571.14 | M52: 2.589699964 | N52: 89528.88 | P52: 151819.16
B53: November | D53: 37078.77 | E53: 0.7878999222 | F53: 29214.36 | H53: 37078.77 | I53: 1.80180006 | J53: 66808.53 | L53: 37078.77 | M53: 2.589699982 | N53: 96022.89 | P53: 162831.42
B54: December | D54: 36890.8 | E54: 0.7878999642 | F54: 29066.26 | H54: 36890.8 | I54: 1.801799907 | J54: 66469.84 | L54: 36890.8 | M54: 2.589699871 | N54: 95536.1 | P54: 162005.94
B56: Total | D56: =SUM(D43:D54) -> 461034.91 | E56: =IF(D56<>0,F56/D56,0) -> 0.7392006388 | F56: =SUM(F43:F54) -> 340797.3 | H56: =SUM(H43:H54) -> 461034.91 | I56: =IF(H56<>0,J56/H56,0) -> 1.73759742 | J56: =SUM(J43:J54) -> 801093.07 | L56: =SUM(L43:L54) -> 461034.91 | M56: =IF(L56<>0,N56/L56,0) -> 2.476798124 | N56: =SUM(N43:N54) -> 1141890.4 | P56: =SUM(P43:P54) -> 1942983.47
B58: Add Extra Host Here (I) | D58: Network | H58: Line Connection | L58: Transformation Connection | P58: Total Line
B59: (if needed)
B60: Month | D60: Units Billed | E60: Rate | F60: Amount | H60: Units Billed | I60: Rate | J60: Amount | L60: Units Billed | M60: Rate | N60: Amount | P60: Amount
B62: January | E62: =IF(D62<>0,F62/D62,0) -> 0 | I62: =IF(H62<>0,J62/H62,0) -> 0 | M62: =IF(L62<>0,N62/L62,0) -> 0 | P62: =J62+N62 -> 0
B63: February | E63: 0 | I63: 0 | M63: 0 | P63: 0
B64: March | E64: 0 | I64: 0 | M64: 0 | P64: 0
B65: April | E65: 0 | I65: 0 | M65: 0 | P65: 0
B66: May | E66: 0 | I66: 0 | M66: 0 | P66: 0
B67: June | E67: 0 | I67: 0 | M67: 0 | P67: 0
B68: July | E68: 0 | I68: 0 | M68: 0 | P68: 0
B69: August | E69: 0 | I69: 0 | M69: 0 | P69: 0
B70: September | E70: 0 | I70: 0 | M70: 0 | P70: 0
B71: October | E71: 0 | I71: 0 | M71: 0 | P71: 0
B72: November | E72: 0 | I72: 0 | M72: 0 | P72: 0
B73: December | E73: 0 | I73: 0 | M73: 0 | P73: 0
B75: Total | D75: =SUM(D62:D73) -> 0 | E75: =IF(D75<>0,F75/D75,0) -> 0 | F75: =SUM(F62:F73) -> 0 | H75: =SUM(H62:H73) -> 0 | I75: =IF(H75<>0,J75/H75,0) -> 0 | J75: =SUM(J62:J73) -> 0 | L75: =SUM(L62:L73) -> 0 | M75: =IF(L75<>0,N75/L75,0) -> 0 | N75: =SUM(N62:N73) -> 0 | P75: =SUM(P62:P73) -> 0
B77: Add Extra Host Here (II) | D77: Network | H77: Line Connection | L77: Transformation Connection | P77: Total Line
B78: (if needed)
B79: Month | D79: Units Billed | E79: Rate | F79: Amount | H79: Units Billed | I79: Rate | J79: Amount | L79: Units Billed | M79: Rate | N79: Amount | P79: Amount
B81: January | E81: =IF(D81<>0,F81/D81,0) -> 0 | I81: =IF(H81<>0,J81/H81,0) -> 0 | M81: =IF(L81<>0,N81/L81,0) -> 0 | P81: =J81+N81 -> 0
B82: February | E82: 0 | I82: 0 | M82: 0 | P82: 0
B83: March | E83: 0 | I83: 0 | M83: 0 | P83: 0
B84: April | E84: 0 | I84: 0 | M84: 0 | P84: 0
B85: May | E85: 0 | I85: 0 | M85: 0 | P85: 0
B86: June | E86: 0 | I86: 0 | M86: 0 | P86: 0
B87: July | E87: 0 | I87: 0 | M87: 0 | P87: 0
B88: August | E88: 0 | I88: 0 | M88: 0 | P88: 0
B89: September | E89: 0 | I89: 0 | M89: 0 | P89: 0
B90: October | E90: 0 | I90: 0 | M90: 0 | P90: 0
B91: November | E91: 0 | I91: 0 | M91: 0 | P91: 0
B92: December | E92: 0 | I92: 0 | M92: 0 | P92: 0
B94: Total | D94: =SUM(D81:D92) -> 0 | E94: =IF(D94<>0,F94/D94,0) -> 0 | F94: =SUM(F81:F92) -> 0 | H94: =SUM(H81:H92) -> 0 | I94: =IF(H94<>0,J94/H94,0) -> 0 | J94: =SUM(J81:J92) -> 0 | L94: =SUM(L81:L92) -> 0 | M94: =IF(L94<>0,N94/L94,0) -> 0 | N94: =SUM(N81:N92) -> 0 | P94: =SUM(P81:P92) -> 0
B96: Total | D96: Network | H96: Line Connection | L96: Transformation Connection | P96: Total Line
B98: Month | D98: Units Billed | E98: Rate | F98: Amount | H98: Units Billed | I98: Rate | J98: Amount | L98: Units Billed | M98: Rate | N98: Amount | P98: Amount
B100: January | D100: =D24+D43+D62+D81 -> 42972.13 | E100: =IF(D100<>0,F100/D100,0) -> 0.6499998953 | F100: =F24+F43+F62+F81 -> 27931.88 | H100: =H24+H43+H62+H81 -> 42972.13 | I100: =IF(H100<>0,J100/H100,0) -> 1.619999986 | J100: =J24+J43+J62+J81 -> 69614.85 | L100: =L24+L43+L62+L81 -> 42972.13 | M100: =IF(L100<>0,N100/L100,0) -> 2.270000114 | N100: =N24+N43+N62+N81 -> 97546.74 | P100: =J100+N100 -> 167161.59
B101: February | D101: =D25+D44+D63+D82 -> 43037.08 | E101: 0.6499999535 | F101: =F25+F44+F63+F82 -> 27974.1 | H101: =H25+H44+H63+H82 -> 43037.08 | I101: 1.620000009 | J101: =J25+J44+J63+J82 -> 69720.07 | L101: =L25+L44+L63+L82 -> 43037.08 | M101: 2.269999963 | N101: =N25+N44+N63+N82 -> 97694.17 | P101: 167414.24
B102: March | D102: 40226.95 | E102: 0.6500000621 | F102: 26147.52 | H102: 40226.95 | I102: 1.620000025 | J102: 65167.66 | L102: 40226.95 | M102: 2.270000087 | N102: 91315.18 | P102: 156482.84
B103: April | D103: 36578.05 | E103: 0.6499999317 | F103: 23775.73 | H103: 36578.05 | I103: 1.619999973 | J103: 59256.44 | L103: 36578.05 | M103: 2.269999904 | N103: 83032.17 | P103: 142288.61
B104: May | D104: 33429.55 | E104: 0.7878999269 | F104: 26339.14 | H104: 33429.55 | I104: 1.801799905 | J104: 60233.36 | L104: 33429.55 | M104: 2.589700131 | N104: 86572.51 | P104: 146805.87
B105: June | D105: 34675.47 | E105: 0.7878999189 | F105: 27320.8 | H105: 34675.47 | I105: 1.801799947 | J105: 62478.26 | L105: 34675.47 | M105: 2.589699866 | N105: 89799.06 | P105: 152277.32
B106: July | D106: 38028.69 | E106: 0.7878998724 | F106: 29962.8 | H106: 38028.69 | I106: 1.801799904 | J106: 68520.09 | L106: 38028.69 | M106: 2.58970004 | N106: 98482.9 | P106: 167002.99
B107: August | D107: 42082.16 | E107: 0.7878999082 | F107: 33156.53 | H107: 42082.16 | I107: 1.801800098 | J107: 75823.64 | L107: 42082.16 | M107: 2.589700006 | N107: 108980.17 | P107: 184803.81
B108: September | D108: 41464.12 | E108: 0.7878999964 | F108: 32669.58 | H108: 41464.12 | I108: 1.801799966 | J108: 74710.05 | L108: 41464.12 | M108: 2.589699962 | N108: 107379.63 | P108: 182089.68
B109: October | D109: 34571.14 | E109: 0.7878999651 | F109: 27238.6 | H109: 34571.14 | I109: 1.801799998 | J109: 62290.28 | L109: 34571.14 | M109: 2.589699964 | N109: 89528.88 | P109: 151819.16
B110: November | D110: 37078.77 | E110: 0.7878999222 | F110: 29214.36 | H110: 37078.77 | I110: 1.80180006 | J110: 66808.53 | L110: 37078.77 | M110: 2.589699982 | N110: 96022.89 | P110: 162831.42
B111: December | D111: 36890.8 | E111: 0.7878999642 | F111: 29066.26 | H111: 36890.8 | I111: 1.801799907 | J111: 66469.84 | L111: 36890.8 | M111: 2.589699871 | N111: 95536.1 | P111: 162005.94
B113: Total | D113: =SUM(D100:D111) -> 461034.91 | E113: =IF(D113<>0,F113/D113,0) -> 0.7392006388 | F113: =SUM(F100:F111) -> 340797.3 | H113: =SUM(H100:H111) -> 461034.91 | I113: =IF(H113<>0,J113/H113,0) -> 1.73759742 | J113: =SUM(J100:J111) -> 801093.07 | L113: =SUM(L100:L111) -> 461034.91 | M113: =IF(L113<>0,N113/L113,0) -> 2.476798124 | N113: =SUM(N100:N111) -> 1141890.4 | P113: =SUM(P100:P111) -> 1942983.47
N115: Low Voltage Switchgear Credit (if applicable) | P115: ='5. UTRs and Sub-Transmission'!E95 -> 0
N117: Total including deduction for Low Voltage Switchgear Credit | P117: =P113+P115 -> 1942983.47

Sheet 7. Current Wholesale
B13: The purpose of this sheet is to calculate the expected billing when current 2015 Uniform Transmission Rates are applied against historical 2014 transmission units.
B20: IESO | D20: Network | H20: Line Connection | L20: Transformation Connection | P20: Total Line
B22: Month | D22: Units Billed | E22: Rate | F22: Amount | H22: Units Billed | I22: Rate | J22: Amount | L22: Units Billed | M22: Rate | N22: Amount | P22: Amount
B24: January | D24: ='6. Historical Wholesale'!D24 -> 0 | E24: ='5. UTRs and Sub-Transmission'!G22 -> 3.78 | F24: =D24*E24 -> 0 | H24: ='6. Historical Wholesale'!H24 -> 0 | I24: ='5. UTRs and Sub-Transmission'!G24 -> 0.86 | J24: =H24*I24 -> 0 | L24: ='6. Historical Wholesale'!L24 -> 0 | M24: ='5. UTRs and Sub-Transmission'!G26 -> 2 | N24: =L24*M24 -> 0 | P24: =J24+N24 -> 0
B25: February | D25: ='6. Historical Wholesale'!D25 -> 0 | E25: =E24 -> 3.78 | F25: =D25*E25 -> 0 | H25: ='6. Historical Wholesale'!H25 -> 0 | I25: =I24 -> 0.86 | J25: =H25*I25 -> 0 | L25: ='6. Historical Wholesale'!L25 -> 0 | M25: =M24 -> 2 | N25: =L25*M25 -> 0 | P25: 0
B26: March | D26: ='6. Historical Wholesale'!D26 -> 0 | E26: =E25 -> 3.78 | F26: 0 | H26: ='6. Historical Wholesale'!H26 -> 0 | I26: =I25 -> 0.86 | J26: 0 | L26: ='6. Historical Wholesale'!L26 -> 0 | M26: =M25 -> 2 | N26: 0 | P26: 0
B27: April | D27: ='6. Historical Wholesale'!D27 -> 0 | E27: 3.78 | F27: 0 | H27: ='6. Historical Wholesale'!H27 -> 0 | I27: 0.86 | J27: 0 | L27: ='6. Historical Wholesale'!L27 -> 0 | M27: 2 | N27: 0 | P27: 0
B28: May | D28: ='6. Historical Wholesale'!D28 -> 0 | E28: 3.78 | F28: 0 | H28: ='6. Historical Wholesale'!H28 -> 0 | I28: 0.86 | J28: 0 | L28: ='6. Historical Wholesale'!L28 -> 0 | M28: 2 | N28: 0 | P28: 0
B29: June | D29: ='6. Historical Wholesale'!D29 -> 0 | E29: 3.78 | F29: 0 | H29: ='6. Historical Wholesale'!H29 -> 0 | I29: 0.86 | J29: 0 | L29: ='6. Historical Wholesale'!L29 -> 0 | M29: 2 | N29: 0 | P29: 0
B30: July | D30: ='6. Historical Wholesale'!D30 -> 0 | E30: 3.78 | F30: 0 | H30: ='6. Historical Wholesale'!H30 -> 0 | I30: 0.86 | J30: 0 | L30: ='6. Historical Wholesale'!L30 -> 0 | M30: 2 | N30: 0 | P30: 0
B31: August | D31: ='6. Historical Wholesale'!D31 -> 0 | E31: 3.78 | F31: 0 | H31: ='6. Historical Wholesale'!H31 -> 0 | I31: 0.86 | J31: 0 | L31: ='6. Historical Wholesale'!L31 -> 0 | M31: 2 | N31: 0 | P31: 0
B32: September | D32: ='6. Historical Wholesale'!D32 -> 0 | E32: 3.78 | F32: 0 | H32: ='6. Historical Wholesale'!H32 -> 0 | I32: 0.86 | J32: 0 | L32: ='6. Historical Wholesale'!L32 -> 0 | M32: 2 | N32: 0 | P32: 0
B33: October | D33: ='6. Historical Wholesale'!D33 -> 0 | E33: 3.78 | F33: 0 | H33: ='6. Historical Wholesale'!H33 -> 0 | I33: 0.86 | J33: 0 | L33: ='6. Historical Wholesale'!L33 -> 0 | M33: 2 | N33: 0 | P33: 0
B34: November | D34: ='6. Historical Wholesale'!D34 -> 0 | E34: 3.78 | F34: 0 | H34: ='6. Historical Wholesale'!H34 -> 0 | I34: 0.86 | J34: 0 | L34: ='6. Historical Wholesale'!L34 -> 0 | M34: 2 | N34: 0 | P34: 0
B35: December | D35: ='6. Historical Wholesale'!D35 -> 0 | E35: 3.78 | F35: 0 | H35: ='6. Historical Wholesale'!H35 -> 0 | I35: 0.86 | J35: 0 | L35: ='6. Historical Wholesale'!L35 -> 0 | M35: 2 | N35: 0 | P35: 0
B37: Total | D37: =SUM(D24:D35) -> 0 | E37: =IF(D37<>0,F37/D37,0) -> 0 | F37: =SUM(F24:F35) -> 0 | H37: =SUM(H24:H35) -> 0 | I37: =IF(H37<>0,J37/H37,0) -> 0 | J37: =SUM(J24:J35) -> 0 | L37: =SUM(L24:L35) -> 0 | M37: =IF(L37<>0,N37/L37,0) -> 0 | N37: =SUM(N24:N35) -> 0 | P37: =SUM(P24:P35) -> 0
B39: Hydro One | D39: Network | H39: Line Connection | L39: Transformation Connection | P39: Total Line
B41: Month | D41: Units Billed | E41: Rate | F41: Amount | H41: Units Billed | I41: Rate | J41: Amount | L41: Units Billed | M41: Rate | N41: Amount | P41: Amount
B43: January | D43: ='6. Historical Wholesale'!D43 -> 42972.13 | E43: ='5. UTRs and Sub-Transmission'!G35+'5. UTRs and Sub-Transmission'!G79 -> 3.4121 | F43: =D43*E43 -> 146625.2048 | H43: ='6. Historical Wholesale'!H43 -> 42972.13 | I43: ='5. UTRs and Sub-Transmission'!G37+'5. UTRs and Sub-Transmission'!G81 -> 0.7879 | J43: =H43*I43 -> 33857.74123 | L43: ='6. Historical Wholesale'!L43 -> 42972.13 | M43: ='5. UTRs and Sub-Transmission'!G39 -> 1.8018 | N43: =L43*M43 -> 77427.18383 | P43: =J43+N43 -> 111284.9251
B44: February | D44: ='6. Historical Wholesale'!D44 -> 43037.08 | E44: =E43 -> 3.4121 | F44: =D44*E44 -> 146846.8207 | H44: ='6. Historical Wholesale'!H44 -> 43037.08 | I44: =I43 -> 0.7879 | J44: =H44*I44 -> 33908.91533 | L44: ='6. Historical Wholesale'!L44 -> 43037.08 | M44: =M43 -> 1.8018 | N44: =L44*M44 -> 77544.21074 | P44: 111453.1261
B45: March | D45: ='6. Historical Wholesale'!D45 -> 40226.95 | E45: =E44 -> 3.4121 | F45: 137258.3761 | H45: ='6. Historical Wholesale'!H45 -> 40226.95 | I45: =I44 -> 0.7879 | J45: 31694.8139 | L45: ='6. Historical Wholesale'!L45 -> 40226.95 | M45: =M44 -> 1.8018 | N45: 72480.91851 | P45: 104175.7324
B46: April | D46: ='6. Historical Wholesale'!D46 -> 36578.05 | E46: 3.4121 | F46: 124807.9644 | H46: ='6. Historical Wholesale'!H46 -> 36578.05 | I46: 0.7879 | J46: 28819.8456 | L46: ='6. Historical Wholesale'!L46 -> 36578.05 | M46: =M45 -> 1.8018 | N46: 65906.33049 | P46: 94726.17609
B47: May | D47: ='6. Historical Wholesale'!D47 -> 33429.55 | E47: 3.4121 | F47: 114064.9676 | H47: ='6. Historical Wholesale'!H47 -> 33429.55 | I47: 0.7879 | J47: 26339.14245 | L47: ='6. Historical Wholesale'!L47 -> 33429.55 | M47: 1.8018 | N47: 60233.36319 | P47: 86572.50564
B48: June | D48: ='6. Historical Wholesale'!D48 -> 34675.47 | E48: 3.4121 | F48: 118316.1712 | H48: ='6. Historical Wholesale'!H48 -> 34675.47 | I48: 0.7879 | J48: 27320.80281 | L48: ='6. Historical Wholesale'!L48 -> 34675.47 | M48: 1.8018 | N48: 62478.26185 | P48: 89799.06466
B49: July | D49: ='6. Historical Wholesale'!D49 -> 38028.69 | E49: 3.4121 | F49: 129757.6931 | H49: ='6. Historical Wholesale'!H49 -> 38028.69 | I49: 0.7879 | J49: 29962.80485 | L49: ='6. Historical Wholesale'!L49 -> 38028.69 | M49: 1.8018 | N49: 68520.09364 | P49: 98482.89849
B50: August | D50: ='6. Historical Wholesale'!D50 -> 42082.16 | E50: 3.4121 | F50: 143588.5381 | H50: ='6. Historical Wholesale'!H50 -> 42082.16 | I50: 0.7879 | J50: 33156.53386 | L50: ='6. Historical Wholesale'!L50 -> 42082.16 | M50: 1.8018 | N50: 75823.63589 | P50: 108980.1698
B51: September | D51: ='6. Historical Wholesale'!D51 -> 41464.12 | E51: 3.4121 | F51: 141479.7239 | H51: ='6. Historical Wholesale'!H51 -> 41464.12 | I51: 0.7879 | J51: 32669.58015 | L51: ='6. Historical Wholesale'!L51 -> 41464.12 | M51: 1.8018 | N51: 74710.05142 | P51: 107379.6316
B52: October | D52: ='6. Historical Wholesale'!D52 -> 34571.14 | E52: 3.4121 | F52: 117960.1868 | H52: ='6. Historical Wholesale'!H52 -> 34571.14 | I52: 0.7879 | J52: 27238.60121 | L52: ='6. Historical Wholesale'!L52 -> 34571.14 | M52: 1.8018 | N52: 62290.28005 | P52: 89528.88126
B53: November | D53: ='6. Historical Wholesale'!D53 -> 37078.77 | E53: 3.4121 | F53: 126516.4711 | H53: ='6. Historical Wholesale'!H53 -> 37078.77 | I53: 0.7879 | J53: 29214.36288 | L53: ='6. Historical Wholesale'!L53 -> 37078.77 | M53: 1.8018 | N53: 66808.52779 | P53: 96022.89067
B54: December | D54: ='6. Historical Wholesale'!D54 -> 36890.8 | E54: 3.4121 | F54: 125875.0987 | H54: ='6. Historical Wholesale'!H54 -> 36890.8 | I54: 0.7879 | J54: 29066.26132 | L54: ='6. Historical Wholesale'!L54 -> 36890.8 | M54: 1.8018 | N54: 66469.84344 | P54: 95536.10476
B56: Total | D56: =SUM(D43:D54) -> 461034.91 | E56: =IF(D56<>0,F56/D56,0) -> 3.4121 | F56: =SUM(F43:F54) -> 1573097.216 | H56: =SUM(H43:H54) -> 461034.91 | I56: =IF(H56<>0,J56/H56,0) -> 0.7879 | J56: =SUM(J43:J54) -> 363249.4056 | L56: =SUM(L43:L54) -> 461034.91 | M56: =IF(L56<>0,N56/L56,0) -> 1.8018 | N56: =SUM(N43:N54) -> 830692.7008 | P56: =SUM(P43:P54) -> 1193942.106
B58: ='6. Historical Wholesale'!B58 -> Add Extra Host Here (I) | D58: Network | H58: Line Connection | L58: Transformation Connection | P58: Total Line
B60: Month | D60: Units Billed | E60: Rate | F60: Amount | H60: Units Billed | I60: Rate | J60: Amount | L60: Units Billed | M60: Rate | N60: Amount | P60: Amount
B62: January | D62: ='6. Historical Wholesale'!D62 -> 0 | E62: ='5. UTRs and Sub-Transmission'!G50 -> 0 | F62: =D62*E62 -> 0 | H62: ='6. Historical Wholesale'!H62 -> 0 | I62: ='5. UTRs and Sub-Transmission'!G52 -> 0 | J62: =H62*I62 -> 0 | L62: ='6. Historical Wholesale'!L62 -> 0 | M62: ='5. UTRs and Sub-Transmission'!G54 -> 0 | N62: =L62*M62 -> 0 | P62: =J62+N62 -> 0
B63: February | D63: ='6. Historical Wholesale'!D63 -> 0 | E63: =E62 -> 0 | F63: =D63*E63 -> 0 | H63: ='6. Historical Wholesale'!H63 -> 0 | I63: =I62 -> 0 | J63: =H63*I63 -> 0 | L63: ='6. Historical Wholesale'!L63 -> 0 | M63: =M62 -> 0 | N63: =L63*M63 -> 0 | P63: 0
B64: March | D64: ='6. Historical Wholesale'!D64 -> 0 | E64: =E63 -> 0 | F64: 0 | H64: ='6. Historical Wholesale'!H64 -> 0 | I64: =I63 -> 0 | J64: 0 | L64: ='6. Historical Wholesale'!L64 -> 0 | M64: =M63 -> 0 | N64: 0 | P64: 0
B65: April | D65: ='6. Historical Wholesale'!D65 -> 0 | E65: 0 | F65: 0 | H65: ='6. Historical Wholesale'!H65 -> 0 | I65: 0 | J65: 0 | L65: ='6. Historical Wholesale'!L65 -> 0 | M65: =M64 -> 0 | N65: 0 | P65: 0
B66: May | D66: ='6. Historical Wholesale'!D66 -> 0 | E66: 0 | F66: 0 | H66: ='6. Historical Wholesale'!H66 -> 0 | I66: 0 | J66: 0 | L66: ='6. Historical Wholesale'!L66 -> 0 | M66: 0 | N66: 0 | P66: 0
B67: June | D67: ='6. Historical Wholesale'!D67 -> 0 | E67: 0 | F67: 0 | H67: ='6. Historical Wholesale'!H67 -> 0 | I67: 0 | J67: 0 | L67: ='6. Historical Wholesale'!L67 -> 0 | M67: 0 | N67: 0 | P67: 0
B68: July | D68: ='6. Historical Wholesale'!D68 -> 0 | E68: 0 | F68: 0 | H68: ='6. Historical Wholesale'!H68 -> 0 | I68: 0 | J68: 0 | L68: ='6. Historical Wholesale'!L68 -> 0 | M68: 0 | N68: 0 | P68: 0
B69: August | D69: ='6. Historical Wholesale'!D69 -> 0 | E69: 0 | F69: 0 | H69: ='6. Historical Wholesale'!H69 -> 0 | I69: 0 | J69: 0 | L69: ='6. Historical Wholesale'!L69 -> 0 | M69: 0 | N69: 0 | P69: 0
B70: September | D70: ='6. Historical Wholesale'!D70 -> 0 | E70: 0 | F70: 0 | H70: ='6. Historical Wholesale'!H70 -> 0 | I70: 0 | J70: 0 | L70: ='6. Historical Wholesale'!L70 -> 0 | M70: 0 | N70: 0 | P70: 0
B71: October | D71: ='6. Historical Wholesale'!D71 -> 0 | E71: 0 | F71: 0 | H71: ='6. Historical Wholesale'!H71 -> 0 | I71: 0 | J71: 0 | L71: ='6. Historical Wholesale'!L71 -> 0 | M71: 0 | N71: 0 | P71: 0
B72: November | D72: ='6. Historical Wholesale'!D72 -> 0 | E72: 0 | F72: 0 | H72: ='6. Historical Wholesale'!H72 -> 0 | I72: 0 | J72: 0 | L72: ='6. Historical Wholesale'!L72 -> 0 | M72: 0 | N72: 0 | P72: 0
B73: December | D73: ='6. Historical Wholesale'!D73 -> 0 | E73: 0 | F73: 0 | H73: ='6. Historical Wholesale'!H73 -> 0 | I73: 0 | J73: 0 | L73: ='6. Historical Wholesale'!L73 -> 0 | M73: 0 | N73: 0 | P73: 0
B75: Total | D75: =SUM(D62:D73) -> 0 | E75: =IF(D75<>0,F75/D75,0) -> 0 | F75: =SUM(F62:F73) -> 0 | H75: =SUM(H62:H73) -> 0 | I75: =IF(H75<>0,J75/H75,0) -> 0 | J75: =SUM(J62:J73) -> 0 | L75: =SUM(L62:L73) -> 0 | M75: =IF(L75<>0,N75/L75,0) -> 0 | N75: =SUM(N62:N73) -> 0 | P75: =SUM(P62:P73) -> 0
B77: ='6. Historical Wholesale'!B77 -> Add Extra Host Here (II) | D77: Network | H77: Line Connection | L77: Transformation Connection | P77: Total Line
B79: Month | D79: Units Billed | E79: Rate | F79: Amount | H79: Units Billed | I79: Rate | J79: Amount | L79: Units Billed | M79: Rate | N79: Amount | P79: Amount
B81: January | D81: ='6. Historical Wholesale'!D81 -> 0 | E81: ='5. UTRs and Sub-Transmission'!G65 -> 0 | F81: =D81*E81 -> 0 | H81: ='6. Historical Wholesale'!H81 -> 0 | I81: ='5. UTRs and Sub-Transmission'!G67 -> 0 | J81: =H81*I81 -> 0 | L81: ='6. Historical Wholesale'!L81 -> 0 | M81: ='5. UTRs and Sub-Transmission'!G69 -> 0 | N81: =L81*M81 -> 0 | P81: =J81+N81 -> 0
B82: February | D82: ='6. Historical Wholesale'!D82 -> 0 | E82: =E81 -> 0 | F82: =D82*E82 -> 0 | H82: ='6. Historical Wholesale'!H82 -> 0 | I82: =I81 -> 0 | J82: =H82*I82 -> 0 | L82: ='6. Historical Wholesale'!L82 -> 0 | M82: =M81 -> 0 | N82: =L82*M82 -> 0 | P82: 0
B83: March | D83: ='6. Historical Wholesale'!D83 -> 0 | E83: =E82 -> 0 | F83: 0 | H83: ='6. Historical Wholesale'!H83 -> 0 | I83: =I82 -> 0 | J83: 0 | L83: ='6. Historical Wholesale'!L83 -> 0 | M83: =M82 -> 0 | N83: 0 | P83: 0
B84: April | D84: ='6. Historical Wholesale'!D84 -> 0 | E84: 0 | F84: 0 | H84: ='6. Historical Wholesale'!H84 -> 0 | I84: 0 | J84: 0 | L84: ='6. Historical Wholesale'!L84 -> 0 | M84: =M83 -> 0 | N84: 0 | P84: 0
B85: May | D85: ='6. Historical Wholesale'!D85 -> 0 | E85: 0 | F85: 0 | H85: ='6. Historical Wholesale'!H85 -> 0 | I85: 0 | J85: 0 | L85: ='6. Historical Wholesale'!L85 -> 0 | M85: 0 | N85: 0 | P85: 0
B86: June | D86: ='6. Historical Wholesale'!D86 -> 0 | E86: 0 | F86: 0 | H86: ='6. Historical Wholesale'!H86 -> 0 | I86: 0 | J86: 0 | L86: ='6. Historical Wholesale'!L86 -> 0 | M86: 0 | N86: 0 | P86: 0
B87: July | D87: ='6. Historical Wholesale'!D87 -> 0 | E87: 0 | F87: 0 | H87: ='6. Historical Wholesale'!H87 -> 0 | I87: 0 | J87: 0 | L87: ='6. Historical Wholesale'!L87 -> 0 | M87: 0 | N87: 0 | P87: 0
B88: August | D88: ='6. Historical Wholesale'!D88 -> 0 | E88: 0 | F88: 0 | H88: ='6. Historical Wholesale'!H88 -> 0 | I88: 0 | J88: 0 | L88: ='6. Historical Wholesale'!L88 -> 0 | M88: 0 | N88: 0 | P88: 0
B89: September | D89: ='6. Historical Wholesale'!D89 -> 0 | E89: 0 | F89: 0 | H89: ='6. Historical Wholesale'!H89 -> 0 | I89: 0 | J89: 0 | L89: ='6. Historical Wholesale'!L89 -> 0 | M89: 0 | N89: 0 | P89: 0
B90: October | D90: ='6. Historical Wholesale'!D90 -> 0 | E90: 0 | F90: 0 | H90: ='6. Historical Wholesale'!H90 -> 0 | I90: 0 | J90: 0 | L90: ='6. Historical Wholesale'!L90 -> 0 | M90: 0 | N90: 0 | P90: 0
B91: November | D91: ='6. Historical Wholesale'!D91 -> 0 | E91: 0 | F91: 0 | H91: ='6. Historical Wholesale'!H91 -> 0 | I91: 0 | J91: 0 | L91: ='6. Historical Wholesale'!L91 -> 0 | M91: 0 | N91: 0 | P91: 0
B92: December | D92: ='6. Historical Wholesale'!D92 -> 0 | E92: 0 | F92: 0 | H92: ='6. Historical Wholesale'!H92 -> 0 | I92: 0 | J92: 0 | L92: ='6. Historical Wholesale'!L92 -> 0 | M92: 0 | N92: 0 | P92: 0
B94: Total | D94: =SUM(D81:D92) -> 0 | E94: =IF(D94<>0,F94/D94,0) -> 0 | F94: =SUM(F81:F92) -> 0 | H94: =SUM(H81:H92) -> 0 | I94: =IF(H94<>0,J94/H94,0) -> 0 | J94: =SUM(J81:J92) -> 0 | L94: =SUM(L81:L92) -> 0 | M94: =IF(L94<>0,N94/L94,0) -> 0 | N94: =SUM(N81:N92) -> 0 | P94: =SUM(P81:P92) -> 0
B96: Total | D96: Network | H96: Line Connection | L96: Transformation Connection | P96: Total Line
B98: Month | D98: Units Billed | E98: Rate | F98: Amount | H98: Units Billed | I98: Rate | J98: Amount | L98: Units Billed | M98: Rate | N98: Amount | P98: Amount
B100: January | D100: =D24+D43+D62+D81 -> 42972.13 | E100: =IF(D100<>0,F100/D100,0) -> 3.4121 | F100: =F24+F43+F62+F81 -> 146625.2048 | H100: =H24+H43+H62+H81 -> 42972.13 | I100: =IF(H100<>0,J100/H100,0) -> 0.7879 | J100: =J24+J43+J62+J81 -> 33857.74123 | L100: =L24+L43+L62+L81 -> 42972.13 | M100: =IF(L100<>0,N100/L100,0) -> 1.8018 | N100: =N24+N43+N62+N81 -> 77427.18383 | P100: =J100+N100 -> 111284.9251
B101: February | D101: =D25+D44+D63+D82 -> 43037.08 | E101: 3.4121 | F101: =F25+F44+F63+F82 -> 146846.8207 | H101: =H25+H44+H63+H82 -> 43037.08 | I101: 0.7879 | J101: =J25+J44+J63+J82 -> 33908.91533 | L101: =L25+L44+L63+L82 -> 43037.08 | M101: 1.8018 | N101: =N25+N44+N63+N82 -> 77544.21074 | P101: 111453.1261
B102: March | D102: 40226.95 | E102: 3.4121 | F102: 137258.3761 | H102: 40226.95 | I102: 0.7879 | J102: 31694.8139 | L102: 40226.95 | M102: 1.8018 | N102: 72480.91851 | P102: 104175.7324
B103: April | D103: 36578.05 | E103: 3.4121 | F103: 124807.9644 | H103: 36578.05 | I103: 0.7879 | J103: 28819.8456 | L103: 36578.05 | M103: 1.8018 | N103: 65906.33049 | P103: 94726.17609
B104: May | D104: 33429.55 | E104: 3.4121 | F104: 114064.9676 | H104: 33429.55 | I104: 0.7879 | J104: 26339.14245 | L104: 33429.55 | M104: 1.8018 | N104: 60233.36319 | P104: 86572.50564
B105: June | D105: 34675.47 | E105: 3.4121 | F105: 118316.1712 | H105: 34675.47 | I105: 0.7879 | J105: 27320.80281 | L105: 34675.47 | M105: 1.8018 | N105: 62478.26185 | P105: 89799.06466
B106: July | D106: 38028.69 | E106: 3.4121 | F106: 129757.6931 | H106: 38028.69 | I106: 0.7879 | J106: 29962.80485 | L106: 38028.69 | M106: 1.8018 | N106: 68520.09364 | P106: 98482.89849
B107: August | D107: 42082.16 | E107: 3.4121 | F107: 143588.5381 | H107: 42082.16 | I107: 0.7879 | J107: 33156.53386 | L107: 42082.16 | M107: 1.8018 | N107: 75823.63589 | P107: 108980.1698
B108: September | D108: 41464.12 | E108: 3.4121 | F108: 141479.7239 | H108: 41464.12 | I108: 0.7879 | J108: 32669.58015 | L108: 41464.12 | M108: 1.8018 | N108: 74710.05142 | P108: 107379.6316
B109: October | D109: 34571.14 | E109: 3.4121 | F109: 117960.1868 | H109: 34571.14 | I109: 0.7879 | J109: 27238.60121 | L109: 34571.14 | M109: 1.8018 | N109: 62290.28005 | P109: 89528.88126
B110: November | D110: 37078.77 | E110: 3.4121 | F110: 126516.4711 | H110: 37078.77 | I110: 0.7879 | J110: 29214.36288 | L110: 37078.77 | M110: 1.8018 | N110: 66808.52779 | P110: 96022.89067
B111: December | D111: 36890.8 | E111: 3.4121 | F111: 125875.0987 | H111: 36890.8 | I111: 0.7879 | J111: 29066.26132 | L111: 36890.8 | M111: 1.8018 | N111: 66469.84344 | P111: 95536.10476
B113: Total | D113: =SUM(D100:D111) -> 461034.91 | E113: =IF(D113<>0,F113/D113,0) -> 3.4121 | F113: =SUM(F100:F111) -> 1573097.216 | H113: =SUM(H100:H111) -> 461034.91 | I113: =IF(H113<>0,J113/H113,0) -> 0.7879 | J113: =SUM(J100:J111) -> 363249.4056 | L113: =SUM(L100:L111) -> 461034.91 | M113: =IF(L113<>0,N113/L113,0) -> 1.8018 | N113: =SUM(N100:N111) -> 830692.7008 | P113: =SUM(P100:P111) -> 1193942.106
N115: Low Voltage Switchgear Credit (if applicable) | P115: ='5. UTRs and Sub-Transmission'!G95 -> 0
N117: Total including deduction for Low Voltage Switchgear Credit | P117: =P113+P115 -> 1193942.106

Sheet 8. Forecast Wholesale
B13: The purpose of this sheet is to calculate the expected billing when forecasted 2016 Uniform Transmission Rates are applied against historical 2014 transmission units.
B20: IESO | D20: Network | H20: Line Connection | L20: Transformation Connection | P20: Total Line
B22: Month | D22: Units Billed | E22: Rate | F22: Amount | H22: Units Billed | I22: Rate | J22: Amount | L22: Units Billed | M22: Rate | N22: Amount | P22: Amount
B24: January | D24: ='6. Historical Wholesale'!D24 -> 0 | E24: ='5. UTRs and Sub-Transmission'!I22 -> 3.66 | F24: =D24*E24 -> 0 | H24: ='6. Historical Wholesale'!H24 -> 0 | I24: ='5. UTRs and Sub-Transmission'!I24 -> 0.87 | J24: =H24*I24 -> 0 | L24: ='6. Historical Wholesale'!L24 -> 0 | M24: ='5. UTRs and Sub-Transmission'!I26 -> 2.02 | N24: =L24*M24 -> 0 | P24: =J24+N24 -> 0
B25: February | D25: ='6. Historical Wholesale'!D25 -> 0 | E25: =E24 -> 3.66 | F25: 0 | H25: ='6. Historical Wholesale'!H25 -> 0 | I25: =I24 -> 0.87 | J25: 0 | L25: ='6. Historical Wholesale'!L25 -> 0 | M25: =M24 -> 2.02 | N25: 0 | P25: 0
B26: March | D26: ='6. Historical Wholesale'!D26 -> 0 | E26: 3.66 | F26: 0 | H26: ='6. Historical Wholesale'!H26 -> 0 | I26: 0.87 | J26: 0 | L26: ='6. Historical Wholesale'!L26 -> 0 | M26: 2.02 | N26: 0 | P26: 0
B27: April | D27: ='6. Historical Wholesale'!D27 -> 0 | E27: 3.66 | F27: 0 | H27: ='6. Historical Wholesale'!H27 -> 0 | I27: 0.87 | J27: 0 | L27: ='6. Historical Wholesale'!L27 -> 0 | M27: 2.02 | N27: 0 | P27: 0
B28: May | D28: ='6. Historical Wholesale'!D28 -> 0 | E28: 3.66 | F28: 0 | H28: ='6. Historical Wholesale'!H28 -> 0 | I28: 0.87 | J28: 0 | L28: ='6. Historical Wholesale'!L28 -> 0 | M28: 2.02 | N28: 0 | P28: 0
B29: June | D29: ='6. Historical Wholesale'!D29 -> 0 | E29: 3.66 | F29: 0 | H29: ='6. Historical Wholesale'!H29 -> 0 | I29: 0.87 | J29: 0 | L29: ='6. Historical Wholesale'!L29 -> 0 | M29: 2.02 | N29: 0 | P29: 0
B30: July | D30: ='6. Historical Wholesale'!D30 -> 0 | E30: 3.66 | F30: 0 | H30: ='6. Historical Wholesale'!H30 -> 0 | I30: 0.87 | J30: 0 | L30: ='6. Historical Wholesale'!L30 -> 0 | M30: 2.02 | N30: 0 | P30: 0
B31: August | D31: ='6. Historical Wholesale'!D31 -> 0 | E31: 3.66 | F31: 0 | H31: ='6. Historical Wholesale'!H31 -> 0 | I31: 0.87 | J31: 0 | L31: ='6. Historical Wholesale'!L31 -> 0 | M31: 2.02 | N31: 0 | P31: 0
B32: September | D32: ='6. Historical Wholesale'!D32 -> 0 | E32: 3.66 | F32: 0 | H32: ='6. Historical Wholesale'!H32 -> 0 | I32: 0.87 | J32: 0 | L32: ='6. Historical Wholesale'!L32 -> 0 | M32: 2.02 | N32: 0 | P32: 0
B33: October | D33: ='6. Historical Wholesale'!D33 -> 0 | E33: 3.66 | F33: 0 | H33: ='6. Historical Wholesale'!H33 -> 0 | I33: 0.87 | J33: 0 | L33: ='6. Historical Wholesale'!L33 -> 0 | M33: 2.02 | N33: 0 | P33: 0
B34: November | D34: ='6. Historical Wholesale'!D34 -> 0 | E34: 3.66 | F34: 0 | H34: ='6. Historical Wholesale'!H34 -> 0 | I34: 0.87 | J34: 0 | L34: ='6. Historical Wholesale'!L34 -> 0 | M34: 2.02 | N34: 0 | P34: 0
B35: December | D35: ='6. Historical Wholesale'!D35 -> 0 | E35: 3.66 | F35: 0 | H35: ='6. Historical Wholesale'!H35 -> 0 | I35: 0.87 | J35: 0 | L35: ='6. Historical Wholesale'!L35 -> 0 | M35: 2.02 | N35: 0 | P35: 0
B37: Total | D37: =SUM(D24:D35) -> 0 | E37: =IF(D37<>0,F37/D37,0) -> 0 | F37: =SUM(F24:F35) -> 0 | H37: =SUM(H24:H35) -> 0 | I37: =IF(H37<>0,J37/H37,0) -> 0 | J37: =SUM(J24:J35) -> 0 | L37: =SUM(L24:L35) -> 0 | M37: =IF(L37<>0,N37/L37,0) -> 0 | N37: =SUM(N24:N35) -> 0 | P37: =SUM(P24:P35) -> 0
B39: Hydro One | D39: Network | H39: Line Connection | L39: Transformation Connection | P39: Total Line
B41: Month | D41: Units Billed | E41: Rate | F41: Amount | H41: Units Billed | I41: Rate | J41: Amount | L41: Units Billed | M41: Rate | N41: Amount | P41: Amount
B43: January | D43: ='6. Historical Wholesale'!D43 -> 42972.13 | E43: ='5. UTRs and Sub-Transmission'!I35+'5. UTRs and Sub-Transmission'!I79 -> 3.34 | F43: =D43*E43 -> 143526.9142 | H43: ='6. Historical Wholesale'!H43 -> 42972.13 | I43: ='5. UTRs and Sub-Transmission'!I37+'5. UTRs and Sub-Transmission'!I81 -> 0.78 | J43: =H43*I43 -> 33518.2614 | L43: ='6. Historical Wholesale'!L43 -> 42972.13 | M43: ='5. UTRs and Sub-Transmission'!I39 -> 1.77 | N43: =L43*M43 -> 76060.6701 | P43: =J43+N43 -> 109578.9315
B44: February | D44: ='6. Historical Wholesale'!D44 -> 43037.08 | E44: =E43 -> 3.34 | F44: 143743.8472 | H44: ='6. Historical Wholesale'!H44 -> 43037.08 | I44: =I43 -> 0.78 | J44: 33568.9224 | L44: ='6. Historical Wholesale'!L44 -> 43037.08 | M44: =M43 -> 1.77 | N44: 76175.6316 | P44: 109744.554
B45: March | D45: ='6. Historical Wholesale'!D45 -> 40226.95 | E45: 3.34 | F45: 134358.013 | H45: ='6. Historical Wholesale'!H45 -> 40226.95 | I45: 0.78 | J45: 31377.021 | L45: ='6. Historical Wholesale'!L45 -> 40226.95 | M45: 1.77 | N45: 71201.7015 | P45: 102578.7225
B46: April | D46: ='6. Historical Wholesale'!D46 -> 36578.05 | E46: 3.34 | F46: 122170.687 | H46: ='6. Historical Wholesale'!H46 -> 36578.05 | I46: 0.78 | J46: 28530.879 | L46: ='6. Historical Wholesale'!L46 -> 36578.05 | M46: 1.77 | N46: 64743.1485 | P46: 93274.0275
B47: May | D47: ='6. Historical Wholesale'!D47 -> 33429.55 | E47: 3.34 | F47: 111654.697 | H47: ='6. Historical Wholesale'!H47 -> 33429.55 | I47: 0.78 | J47: 26075.049 | L47: ='6. Historical Wholesale'!L47 -> 33429.55 | M47: 1.77 | N47: 59170.3035 | P47: 85245.3525
B48: June | D48: ='6. Historical Wholesale'!D48 -> 34675.47 | E48: 3.34 | F48: 115816.0698 | H48: ='6. Historical Wholesale'!H48 -> 34675.47 | I48: 0.78 | J48: 27046.8666 | L48: ='6. Historical Wholesale'!L48 -> 34675.47 | M48: 1.77 | N48: 61375.5819 | P48: 88422.4485
B49: July | D49: ='6. Historical Wholesale'!D49 -> 38028.69 | E49: 3.34 | F49: 127015.8246 | H49: ='6. Historical Wholesale'!H49 -> 38028.69 | I49: 0.78 | J49: 29662.3782 | L49: ='6. Historical Wholesale'!L49 -> 38028.69 | M49: 1.77 | N49: 67310.7813 | P49: 96973.1595
B50: August | D50: ='6. Historical Wholesale'!D50 -> 42082.16 | E50: 3.34 | F50: 140554.4144 | H50: ='6. Historical Wholesale'!H50 -> 42082.16 | I50: 0.78 | J50: 32824.0848 | L50: ='6. Historical Wholesale'!L50 -> 42082.16 | M50: 1.77 | N50: 74485.4232 | P50: 107309.508
B51: September | D51: ='6. Historical Wholesale'!D51 -> 41464.12 | E51: 3.34 | F51: 138490.1608 | H51: ='6. Historical Wholesale'!H51 -> 41464.12 | I51: 0.78 | J51: 32342.0136 | L51: ='6. Historical Wholesale'!L51 -> 41464.12 | M51: 1.77 | N51: 73391.4924 | P51: 105733.506
B52: October | D52: ='6. Historical Wholesale'!D52 -> 34571.14 | E52: 3.34 | F52: 115467.6076 | H52: ='6. Historical Wholesale'!H52 -> 34571.14 | I52: 0.78 | J52: 26965.4892 | L52: ='6. Historical Wholesale'!L52 -> 34571.14 | M52: 1.77 | N52: 61190.9178 | P52: 88156.407
B53: November | D53: ='6. Historical Wholesale'!D53 -> 37078.77 | E53: 3.34 | F53: 123843.0918 | H53: ='6. Historical Wholesale'!H53 -> 37078.77 | I53: 0.78 | J53: 28921.4406 | L53: ='6. Historical Wholesale'!L53 -> 37078.77 | M53: 1.77 | N53: 65629.4229 | P53: 94550.8635
B54: December | D54: ='6. Historical Wholesale'!D54 -> 36890.8 | E54: 3.34 | F54: 123215.272 | H54: ='6. Historical Wholesale'!H54 -> 36890.8 | I54: 0.78 | J54: 28774.824 | L54: ='6. Historical Wholesale'!L54 -> 36890.8 | M54: 1.77 | N54: 65296.716 | P54: 94071.54
B56: Total | D56: =SUM(D43:D54) -> 461034.91 | E56: =IF(D56<>0,F56/D56,0) -> 3.34 | F56: =SUM(F43:F54) -> 1539856.599 | H56: =SUM(H43:H54) -> 461034.91 | I56: =IF(H56<>0,J56/H56,0) -> 0.78 | J56: =SUM(J43:J54) -> 359607.2298 | L56: =SUM(L43:L54) -> 461034.91 | M56: =IF(L56<>0,N56/L56,0) -> 1.77 | N56: =SUM(N43:N54) -> 816031.7907 | P56: =SUM(P43:P54) -> 1175639.021
B58: ='6. Historical Wholesale'!B58 -> Add Extra Host Here (I) | D58: Network | H58: Line Connection | L58: Transformation Connection | P58: Total Line
B60: Month | D60: Units Billed | E60: Rate | F60: Amount | H60: Units Billed | I60: Rate | J60: Amount | L60: Units Billed | M60: Rate | N60: Amount | P60: Amount
B62: January | D62: ='6. Historical Wholesale'!D62 -> 0 | E62: ='5. UTRs and Sub-Transmission'!I50 -> 0 | F62: =D62*E62 -> 0 | H62: ='6. Historical Wholesale'!H62 -> 0 | I62: ='5. UTRs and Sub-Transmission'!I52 -> 0 | J62: =H62*I62 -> 0 | L62: ='6. Historical Wholesale'!L62 -> 0 | M62: ='5. UTRs and Sub-Transmission'!I54 -> 0 | N62: =L62*M62 -> 0 | P62: =J62+N62 -> 0
B63: February | D63: ='6. Historical Wholesale'!D63 -> 0 | E63: =E62 -> 0 | F63: 0 | H63: ='6. Historical Wholesale'!H63 -> 0 | I63: =I62 -> 0 | J63: 0 | L63: ='6. Historical Wholesale'!L63 -> 0 | M63: =M62 -> 0 | N63: 0 | P63: 0
B64: March | D64: ='6. Historical Wholesale'!D64 -> 0 | E64: 0 | F64: 0 | H64: ='6. Historical Wholesale'!H64 -> 0 | I64: 0 | J64: 0 | L64: ='6. Historical Wholesale'!L64 -> 0 | M64: 0 | N64: 0 | P64: 0
B65: April | D65: ='6. Historical Wholesale'!D65 -> 0 | E65: 0 | F65: 0 | H65: ='6. Historical Wholesale'!H65 -> 0 | I65: 0 | J65: 0 | L65: ='6. Historical Wholesale'!L65 -> 0 | M65: 0 | N65: 0 | P65: 0
B66: May | D66: ='6. Historical Wholesale'!D66 -> 0 | E66: 0 | F66: 0 | H66: ='6. Historical Wholesale'!H66 -> 0 | I66: 0 | J66: 0 | L66: ='6. Historical Wholesale'!L66 -> 0 | M66: 0 | N66: 0 | P66: 0
B67: June | D67: ='6. Historical Wholesale'!D67 -> 0 | E67: 0 | F67: 0 | H67: ='6. Historical Wholesale'!H67 -> 0 | I67: 0 | J67: 0 | L67: ='6. Historical Wholesale'!L67 -> 0 | M67: 0 | N67: 0 | P67: 0
B68: July | D68: ='6. Historical Wholesale'!D68 -> 0 | E68: 0 | F68: 0 | H68: ='6. Historical Wholesale'!H68 -> 0 | I68: 0 | J68: 0 | L68: ='6. Historical Wholesale'!L68 -> 0 | M68: 0 | N68: 0 | P68: 0
B69: August | D69: ='6. Historical Wholesale'!D69 -> 0 | E69: 0 | F69: 0 | H69: ='6. Historical Wholesale'!H69 -> 0 | I69: 0 | J69: 0 | L69: ='6. Historical Wholesale'!L69 -> 0 | M69: 0 | N69: 0 | P69: 0
B70: September | D70: ='6. Historical Wholesale'!D70 -> 0 | E70: 0 | F70: 0 | H70: ='6. Historical Wholesale'!H70 -> 0 | I70: 0 | J70: 0 | L70: ='6. Historical Wholesale'!L70 -> 0 | M70: 0 | N70: 0 | P70: 0
B71: October | D71: ='6. Historical Wholesale'!D71 -> 0 | E71: 0 | F71: 0 | H71: ='6. Historical Wholesale'!H71 -> 0 | I71: 0 | J71: 0 | L71: ='6. Historical Wholesale'!L71 -> 0 | M71: 0 | N71: 0 | P71: 0
B72: November | D72: ='6. Historical Wholesale'!D72 -> 0 | E72: 0 | F72: 0 | H72: ='6. Historical Wholesale'!H72 -> 0 | I72: 0 | J72: 0 | L72: ='6. Historical Wholesale'!L72 -> 0 | M72: 0 | N72: 0 | P72: 0
B73: December | D73: ='6. Historical Wholesale'!D73 -> 0 | E73: 0 | F73: 0 | H73: ='6. Historical Wholesale'!H73 -> 0 | I73: 0 | J73: 0 | L73: ='6. Historical Wholesale'!L73 -> 0 | M73: 0 | N73: 0 | P73: 0
B75: Total | D75: =SUM(D62:D73) -> 0 | E75: =IF(D75<>0,F75/D75,0) -> 0 | F75: =SUM(F62:F73) -> 0 | H75: =SUM(H62:H73) -> 0 | I75: =IF(H75<>0,J75/H75,0) -> 0 | J75: =SUM(J62:J73) -> 0 | L75: =SUM(L62:L73) -> 0 | M75: =IF(L75<>0,N75/L75,0) -> 0 | N75: =SUM(N62:N73) -> 0 | P75: =SUM(P62:P73) -> 0
B77: ='6. Historical Wholesale'!B77 -> Add Extra Host Here (II) | D77: Network | H77: Line Connection | L77: Transformation Connection | P77: Total Line
B79: Month | D79: Units Billed | E79: Rate | F79: Amount | H79: Units Billed | I79: Rate | J79: Amount | L79: Units Billed | M79: Rate | N79: Amount | P79: Amount
B81: January | D81: ='6. Historical Wholesale'!D81 -> 0 | E81: ='5. UTRs and Sub-Transmission'!I65 -> 0 | F81: =D81*E81 -> 0 | H81: ='6. Historical Wholesale'!H81 -> 0 | I81: ='5. UTRs and Sub-Transmission'!I67 -> 0 | J81: =H81*I81 -> 0 | L81: ='6. Historical Wholesale'!L81 -> 0 | M81: ='5. UTRs and Sub-Transmission'!I69 -> 0 | N81: =L81*M81 -> 0 | P81: =J81+N81 -> 0
B82: February | D82: ='6. Historical Wholesale'!D82 -> 0 | E82: =E81 -> 0 | F82: 0 | H82: ='6. Historical Wholesale'!H82 -> 0 | I82: =I81 -> 0 | J82: 0 | L82: ='6. Historical Wholesale'!L82 -> 0 | M82: =M81 -> 0 | N82: 0 | P82: 0
B83: March | D83: ='6. Historical Wholesale'!D83 -> 0 | E83: 0 | F83: 0 | H83: ='6. Historical Wholesale'!H83 -> 0 | I83: 0 | J83: 0 | L83: ='6. Historical Wholesale'!L83 -> 0 | M83: 0 | N83: 0 | P83: 0
B84: April | D84: ='6. Historical Wholesale'!D84 -> 0 | E84: 0 | F84: 0 | H84: ='6. Historical Wholesale'!H84 -> 0 | I84: 0 | J84: 0 | L84: ='6. Historical Wholesale'!L84 -> 0 | M84: 0 | N84: 0 | P84: 0
B85: May | D85: ='6. Historical Wholesale'!D85 -> 0 | E85: 0 | F85: 0 | H85: ='6. Historical Wholesale'!H85 -> 0 | I85: 0 | J85: 0 | L85: ='6. Historical Wholesale'!L85 -> 0 | M85: 0 | N85: 0 | P85: 0
B86: June | D86: ='6. Historical Wholesale'!D86 -> 0 | E86: 0 | F86: 0 | H86: ='6. Historical Wholesale'!H86 -> 0 | I86: 0 | J86: 0 | L86: ='6. Historical Wholesale'!L86 -> 0 | M86: 0 | N86: 0 | P86: 0
B87: July | D87: ='6. Historical Wholesale'!D87 -> 0 | E87: 0 | F87: 0 | H87: ='6. Historical Wholesale'!H87 -> 0 | I87: 0 | J87: 0 | L87: ='6. Historical Wholesale'!L87 -> 0 | M87: 0 | N87: 0 | P87: 0
B88: August | D88: ='6. Historical Wholesale'!D88 -> 0 | E88: 0 | F88: 0 | H88: ='6. Historical Wholesale'!H88 -> 0 | I88: 0 | J88: 0 | L88: ='6. Historical Wholesale'!L88 -> 0 | M88: 0 | N88: 0 | P88: 0
B89: September | D89: ='6. Historical Wholesale'!D89 -> 0 | E89: 0 | F89: 0 | H89: ='6. Historical Wholesale'!H89 -> 0 | I89: 0 | J89: 0 | L89: ='6. Historical Wholesale'!L89 -> 0 | M89: 0 | N89: 0 | P89: 0
B90: October | D90: ='6. Historical Wholesale'!D90 -> 0 | E90: 0 | F90: 0 | H90: ='6. Historical Wholesale'!H90 -> 0 | I90: 0 | J90: 0 | L90: ='6. Historical Wholesale'!L90 -> 0 | M90: 0 | N90: 0 | P90: 0
B91: November | D91: ='6. Historical Wholesale'!D91 -> 0 | E91: 0 | F91: 0 | H91: ='6. Historical Wholesale'!H91 -> 0 | I91: 0 | J91: 0 | L91: ='6. Historical Wholesale'!L91 -> 0 | M91: 0 | N91: 0 | P91: 0
B92: December | D92: ='6. Historical Wholesale'!D92 -> 0 | E92: 0 | F92: 0 | H92: ='6. Historical Wholesale'!H92 -> 0 | I92: 0 | J92: 0 | L92: ='6. Historical Wholesale'!L92 -> 0 | M92: 0 | N92: 0 | P92: 0
B94: Total | D94: =SUM(D81:D92) -> 0 | E94: =IF(D94<>0,F94/D94,0) -> 0 | F94: =SUM(F81:F92) -> 0 | H94: =SUM(H81:H92) -> 0 | I94: =IF(H94<>0,J94/H94,0) -> 0 | J94: =SUM(J81:J92) -> 0 | L94: =SUM(L81:L92) -> 0 | M94: =IF(L94<>0,N94/L94,0) -> 0 | N94: =SUM(N81:N92) -> 0 | P94: =SUM(P81:P92) -> 0
B96: Total | D96: Network | H96: Line Connection | L96: Transformation Connection | P96: Total Line
B98: Month | D98: Units Billed | E98: Rate | F98: Amount | H98: Units Billed | I98: Rate | J98: Amount | L98: Units Billed | M98: Rate | N98: Amount | P98: Amount
B100: January | D100: =D24+D43+D62+D81 -> 42972.13 | E100: =IF(D100<>0,F100/D100,0) -> 3.34 | F100: =F24+F43+F62+F81 -> 143526.9142 | H100: =H24+H43+H62+H81 -> 42972.13 | I100: =IF(H100<>0,J100/H100,0) -> 0.78 | J100: =J24+J43+J62+J81 -> 33518.2614 | L100: =L24+L43+L62+L81 -> 42972.13 | M100: =IF(L100<>0,N100/L100,0) -> 1.77 | N100: =N24+N43+N62+N81 -> 76060.6701 | P100: =J100+N100 -> 109578.9315
B101: February | D101: =D25+D44+D63+D82 -> 43037.08 | E101: 3.34 | F101: 143743.8472 | H101: =H25+H44+H63+H82 -> 43037.08 | I101: 0.78 | J101: =J25+J44+J63+J82 -> 33568.9224 | L101: =L25+L44+L63+L82 -> 43037.08 | M101: 1.77 | N101: =N25+N44+N63+N82 -> 76175.6316 | P101: 109744.554
B102: March | D102: 40226.95 | E102: 3.34 | F102: 134358.013 | H102: =H26+H45+H64+H83 -> 40226.95 | I102: 0.78 | J102: =J26+J45+J64+J83 -> 31377.021 | L102: =L26+L45+L64+L83 -> 40226.95 | M102: 1.77 | N102: =N26+N45+N64+N83 -> 71201.7015 | P102: 102578.7225
B103: April | D103: 36578.05 | E103: 3.34 | F103: 122170.687 | H103: =H27+H46+H65+H84 -> 36578.05 | I103: 0.78 | J103: =J27+J46+J65+J84 -> 28530.879 | L103: =L27+L46+L65+L84 -> 36578.05 | M103: 1.77 | N103: =N27+N46+N65+N84 -> 64743.1485 | P103: 93274.0275
B104: May | D104: 33429.55 | E104: 3.34 | F104: 111654.697 | H104: =H28+H47+H66+H85 -> 33429.55 | I104: 0.78 | J104: =J28+J47+J66+J85 -> 26075.049 | L104: =L28+L47+L66+L85 -> 33429.55 | M104: 1.77 | N104: =N28+N47+N66+N85 -> 59170.3035 | P104: 85245.3525
B105: June | D105: 34675.47 | E105: 3.34 | F105: 115816.0698 | H105: =H29+H48+H67+H86 -> 34675.47 | I105: 0.78 | J105: =J29+J48+J67+J86 -> 27046.8666 | L105: =L29+L48+L67+L86 -> 34675.47 | M105: 1.77 | N105: =N29+N48+N67+N86 -> 61375.5819 | P105: 88422.4485
B106: July | D106: 38028.69 | E106: 3.34 | F106: 127015.8246 | H106: =H30+H49+H68+H87 -> 38028.69 | I106: 0.78 | J106: =J30+J49+J68+J87 -> 29662.3782 | L106: =L30+L49+L68+L87 -> 38028.69 | M106: 1.77 | N106: =N30+N49+N68+N87 -> 67310.7813 | P106: 96973.1595
B107: August | D107: 42082.16 | E107: 3.34 | F107: 140554.4144 | H107: =H31+H50+H69+H88 -> 42082.16 | I107: 0.78 | J107: =J31+J50+J69+J88 -> 32824.0848 | L107: =L31+L50+L69+L88 -> 42082.16 | M107: 1.77 | N107: =N31+N50+N69+N88 -> 74485.4232 | P107: 107309.508
B108: September | D108: 41464.12 | E108: 3.34 | F108: 138490.1608 | H108: =H32+H51+H70+H89 -> 41464.12 | I108: 0.78 | J108: =J32+J51+J70+J89 -> 32342.0136 | L108: =L32+L51+L70+L89 -> 41464.12 | M108: 1.77 | N108: =N32+N51+N70+N89 -> 73391.4924 | P108: 105733.506
B109: October | D109: 34571.14 | E109: 3.34 | F109: 115467.6076 | H109: =H33+H52+H71+H90 -> 34571.14 | I109: 0.78 | J109: =J33+J52+J71+J90 -> 26965.4892 | L109: =L33+L52+L71+L90 -> 34571.14 | M109: 1.77 | N109: =N33+N52+N71+N90 -> 61190.9178 | P109: 88156.407
B110: November | D110: 37078.77 | E110: 3.34 | F110: 123843.0918 | H110: =H34+H53+H72+H91 -> 37078.77 | I110: 0.78 | J110: =J34+J53+J72+J91 -> 28921.4406 | L110: =L34+L53+L72+L91 -> 37078.77 | M110: 1.77 | N110: =N34+N53+N72+N91 -> 65629.4229 | P110: 94550.8635
B111: December | D111: 36890.8 | E111: 3.34 | F111: 123215.272 | H111: =H35+H54+H73+H92 -> 36890.8 | I111: 0.78 | J111: =J35+J54+J73+J92 -> 28774.824 | L111: =L35+L54+L73+L92 -> 36890.8 | M111: 1.77 | N111: =N35+N54+N73+N92 -> 65296.716 | P111: 94071.54
B113: Total | D113: =SUM(D100:D111) -> 461034.91 | E113: =IF(D113<>0,F113/D113,0) -> 3.34 | F113: =SUM(F100:F111) -> 1539856.599 | H113: =SUM(H100:H111) -> 461034.91 | I113: =IF(H113<>0,J113/H113,0) -> 0.78 | J113: =SUM(J100:J111) -> 359607.2298 | L113: =SUM(L100:L111) -> 461034.91 | M113: =IF(L113<>0,N113/L113,0) -> 1.77 | N113: =SUM(N100:N111) -> 816031.7907 | P113: =SUM(P100:P111) -> 1175639.021
N115: Low Voltage Switchgear Credit (if applicable) | P115: ='5. UTRs and Sub-Transmission'!I95 -> 0
N117: Total including deduction for Low Voltage Switchgear Credit | P117: =P113+P115 -> 1175639.021

Sheet 9. RTSR Rates to Forecast
A13: The purpose of this sheet is to re-align the current RTS Network Rates to recover current wholesale network costs.
A15: Rate Class | B15: Rate Description | C15: Unit | D15: Current RTSR-Network | E15: Loss Adjusted Billed kWh | F15: Billed kW | G15: Billed Amount | H15: Billed Amount % | I15: Current Wholesale Billing | J15: Adjusted RTSR Network
A17: Residential | B17: RTSR - Network | C17: kWh | D17: 0.0059 | E17: 80984665.43 | G17: =ROUND(D17*E17, 2) -> 477809.53 | H17: =G17/1394762 -> 0.3425742385 | I17: =H17*total_current_wholesale_network -> 538902.581 | J17: =IF(ISERROR(I17/E17), 0, I17/E17) -> 0.006654378062
A18: General Service Less Than 50 kW | B18: RTSR - Network | C18: kWh | D18: 0.0054 | E18: 33473561.78 | G18: =ROUND(D18*E18, 2) -> 180757.23 | H18: =G18/1394762 -> 0.1295971858 | I18: =H18*total_current_wholesale_network -> 203868.9722 | J18: =IF(ISERROR(I18/E18), 0, I18/E18) -> 0.006090447546
A19: General Service 50 to 2,999 kW | B19: RTSR - Network | C19: kW | D19: 2.1729 | F19: 289868.6458 | G19: =ROUND(D19*F19, 2) -> 629855.58 | H19: =G19/1394762 -> 0.4515864212 | I19: =H19*total_current_wholesale_network -> 710389.3422 | J19: =IF(ISERROR(I19/F19), 0, I19/F19) -> 2.450728467
A20: General Service 3,000 to 4,999 kW | B20: RTSR - Network | C20: kW | D20: 2.4302 | F20: 39488.80016 | G20: =ROUND(D20*F20, 2) -> 95965.68 | H20: =G20/1394762 -> 0.06880434081 | I20: =H20*total_current_wholesale_network -> 108235.917 | J20: =IF(ISERROR(I20/F20), 0, I20/F20) -> 2.740926961
A21: Street Lighting | B21: RTSR - Network | C21: kW | D21: 1.6388 | F21: 3837.266592 | G21: =ROUND(D21*F21, 2) -> 6288.51 | H21: =G21/1394762 -> 0.004508661693 | I21: =H21*total_current_wholesale_network -> 7092.563159 | J21: =IF(ISERROR(I21/F21), 0, I21/F21) -> 1.848337349
A22: Sentinel Lighting | B22: RTSR - Network | C22: kW | D22: 1.6468 | F22: 132.2660924 | G22: =ROUND(D22*F22, 2) -> 217.82 | H22: =G22/1394762 -> 0.0001561700132 | I22: =H22*total_current_wholesale_network -> 245.6706131 | J22: =IF(ISERROR(I22/F22), 0, I22/F22) -> 1.857396773
A23: Unmetered Scattered Load | B23: RTSR - Network | C23: kWh | D23: 0.0062 | E23: 623814.7169 | G23: =ROUND(D23*E23, 2) -> 3867.65 | H23: =G23/1394762 -> 0.002772982057 | I23: =H23*total_current_wholesale_network -> 4362.170355 | J23: =IF(ISERROR(I23/E23), 0, I23/E23) -> 0.006992733959
A25: The purpose of this table is to re-align the current RTS Connection Rates to recover current wholesale connection costs.
A26: Rate Class | B26: Rate Description | C26: Unit | D26: Current RTSR-Connection | E26: Loss Adjusted Billed kWh | F26: Billed kW | G26: Billed Amount | H26: Billed Amount % | I26: Current Wholesale Billing | J26: Adjusted RTSR-Connection
A28: Residential | B28: RTSR - Connection | C28: kWh | D28: 0.0045 | E28: 80984665.43 | G28: =ROUND(D28*E28, 2) -> 364430.99 | H28: =G28/1061388.07 -> 0.3433531997 | I28: =H28*Total_Current_Wholesale_Lineplus -> 409943.8425 | J28: =IF(ISERROR(I28/E28), 0, I28/E28) -> 0.005061993408
A29: General Service Less Than 50 kW | B29: RTSR - Connection | C29: kWh | D29: 0.0041 | E29: 33473561.78 | G29: =ROUND(D29*E29, 2) -> 137241.6 | H29: =G29/1061388.07 -> 0.1293038841 | I29: =H29*Total_Current_Wholesale_Lineplus -> 154381.3518 | J29: =IF(ISERROR(I29/E29), 0, I29/E29) -> 0.004612038384
A30: General Service 50 to 2,999 kW | B30: RTSR - Connection | C30: kW | D30: 1.6392 | F30: 289868.6458 | G30: =ROUND(D30*F30, 2) -> 475152.68 | H30: =G30/1061388.07 -> 0.4476710201 | I30: =H30*Total_Current_Wholesale_Lineplus -> 534493.2807 | J30: =IF(ISERROR(I30/F30), 0, I30/F30) -> 1.843915471
A31: General Service 3,000 to 4,999 kW | B31: RTSR - Connection | C31: kW | D31: 1.9334 | F31: 39488.80016 | G31: =ROUND(D31*F31, 2) -> 76347.65 | H31: =G31/1061388.07 -> 0.0719318901 | I31: =H31*Total_Current_Wholesale_Lineplus -> 85882.51238 | J31: =IF(ISERROR(I31/F31), 0, I31/F31) -> 2.17485748
A32: Street Lighting | B32: RTSR - Connection | C32: kW | D32: 1.2672 | F32: 3837.266592 | G32: =ROUND(D32*F32, 2) -> 4862.58 | H32: =G32/1061388.07 -> 0.004581340357 | I32: =H32*Total_Current_Wholesale_Lineplus -> 5469.855157 | J32: =IF(ISERROR(I32/F32), 0, I32/F32) -> 1.425456122
A33: Sentinel Lighting | B33: RTSR - Connection | C33: kW | D33: 1.2937 | F33: 132.2660924 | G33: =ROUND(D33*F33, 2) -> 171.11 | H33: =G33/1061388.07 -> 0.0001612134193 | I33: =H33*Total_Current_Wholesale_Lineplus -> 192.4794895 | J33: =IF(ISERROR(I33/F33), 0, I33/F33) -> 1.455244394
A34: Unmetered Scattered Load | B34: RTSR - Connection | C34: kWh | D34: 0.0051 | E34: 623814.7169 | G34: =ROUND(D34*E34, 2) -> 3181.46 | H34: =G34/1061388.07 -> 0.002997452195 | I34: =H34*Total_Current_Wholesale_Lineplus -> 3578.784387 | J34: =IF(ISERROR(I34/E34), 0, I34/E34) -> 0.005736934847
A36: The purpose of this table is to update the re-aligned RTS Network Rates to recover future wholesale network costs.
A37: Rate Class | B37: Rate Description | C37: Unit | D37: Adjusted RTSR-Network | E37: Loss Adjusted Billed kWh | F37: Billed kW | G37: Billed Amount | H37: Billed Amount % | I37: Current Wholesale Billing | J37: Proposed RTSR-Network
A39: Residential | B39: RTSR - Network | C39: kWh | D39: 0.006654378062 | E39: 80984665.43 | G39: =IF(ISERROR(D39*E39), 0, ROUND(D39*E39, 2)) -> 538902.58 | H39: =G39/1573097.21 -> 0.3425742393 | I39: =H39*forecast_wholesale_network -> 527515.2031 | J39: =IF(ISERROR(I39/E39), 0, I39/E39) -> 0.00651376653
A40: General Service Less Than 50 kW | B40: RTSR - Network | C40: kWh | D40: 0.006090447546 | E40: 33473561.78 | G40: =IF(ISERROR(D40*E40), 0, ROUND(D40*E40, 2)) -> 203868.97 | H40: =G40/1573097.21 -> 0.1295971849 | I40: =H40*forecast_wholesale_network -> 199561.0804 | J40: =IF(ISERROR(I40/E40), 0, I40/E40) -> 0.005961752196
A41: General Service 50 to 2,999 kW | B41: RTSR - Network | C41: kW | D41: 2.450728467 | F41: 289868.6458 | G41: =ROUND(D41*F41, 2) -> 710389.34 | H41: =G41/1573097.21 -> 0.4515864217 | I41: =H41*forecast_wholesale_network -> 695378.3316 | J41: =IF(ISERROR(I41/F41), 0, I41/F41) -> 2.398942906
A42: General Service 3,000 to 4,999 kW | B42: RTSR - Network | C42: kW | D42: 2.740926961 | F42: 39488.80016 | G42: =ROUND(D42*F42, 2) -> 108235.92 | H42: =G42/1573097.21 -> 0.06880434299 | I42: =H42*forecast_wholesale_network -> 105948.8216 | J42: =IF(ISERROR(I42/F42), 0, I42/F42) -> 2.68300939
A43: Street Lighting | B43: RTSR - Network | C43: kW | D43: 1.848337349 | F43: 3837.266592 | G43: =ROUND(D43*F43, 2) -> 7092.56 | H43: =G43/1573097.21 -> 0.004508659703 | I43: =H43*forecast_wholesale_network -> 6942.689398 | J43: =IF(ISERROR(I43/F43), 0, I43/F43) -> 1.809279921
A44: Sentinel Lighting | B44: RTSR - Network | C44: kW | D44: 1.857396773 | F44: 132.2660924 | G44: =ROUND(D44*F44, 2) -> 245.67 | H44: =G44/1573097.21 -> 0.0001561696241 | I44: =H44*forecast_wholesale_network -> 240.4788263 | J44: =IF(ISERROR(I44/F44), 0, I44/F44) -> 1.818144182
A45: Unmetered Scattered Load | B45: RTSR - Network | C45: kWh | D45: 0.006992733959 | E45: 623814.7169 | G45: =IF(ISERROR(D45*E45), 0, ROUND(D45*E45, 2)) -> 4362.17 | H45: =G45/1573097.21 -> 0.002772981843 | I45: =H45*forecast_wholesale_network -> 4269.99439 | J45: =IF(ISERROR(I45/E45), 0, I45/E45) -> 0.006844972192
A47: The purpose of this table is to update the re-aligned RTS Connection Rates to recover future wholesale connection costs.
A48: Rate Class | B48: Rate Description | C48: Unit | D48: Adjusted RTSR-Connection | E48: Loss Adjusted Billed kWh | F48: Billed kW | G48: Billed Amount | H48: Billed Amount % | I48: Current Wholesale Billing | J48: Proposed RTSR-Connection
A50: Residential | B50: RTSR - Connection | C50: kWh | D50: 0.005061993408 | E50: 80984665.43 | G50: =ROUND(D50*E50, 2) -> 409943.84 | H50: =G50/1193942.1 -> 0.3433531995 | I50: =H50*forecast_wholesale_lineplus -> 403659.4191 | J50: =IF(ISERROR(I50/E50), 0, I50/E50) -> 0.004984393243
A51: General Service Less Than 50 kW | B51: RTSR - Connection | C51: kWh | D51: 0.004612038384 | E51: 33473561.78 | G51: =ROUND(D51*E51, 2) -> 154381.35 | H51: =G51/1193942.1 -> 0.1293038833 | I51: =H51*forecast_wholesale_lineplus -> 152014.6907 | J51: =IF(ISERROR(I51/E51), 0, I51/E51) -> 0.004541335988
A52: General Service 50 to 2,999 kW | B52: RTSR - Connection | C52: kW | D52: 1.843915471 | F52: 289868.6458 | G52: =ROUND(D52*F52, 2) -> 534493.28 | H52: =G52/1193942.1 -> 0.4476710219 | I52: =H52*forecast_wholesale_lineplus -> 526299.5217 | J52: =IF(ISERROR(I52/F52), 0, I52/F52) -> 1.815648326
A53: General Service 3,000 to 4,999 kW | B53: RTSR - Connection | C53: kW | D53: 2.17485748 | F53: 39488.80016 | G53: =ROUND(D53*F53, 2) -> 85882.51 | H53: =G53/1193942.1 -> 0.07193188849 | I53: =H53*forecast_wholesale_lineplus -> 84565.93493 | J53: =IF(ISERROR(I53/F53), 0, I53/F53) -> 2.141516951
A54: Street Lighting | B54: RTSR - Connection | C54: kW | D54: 1.425456122 | F54: 3837.266592 | G54: =ROUND(D54*F54, 2) -> 5469.86 | H54: =G54/1193942.1 -> 0.004581344439 | I54: =H54*forecast_wholesale_lineplus -> 5386.007289 | J54: =IF(ISERROR(I54/F54), 0, I54/F54) -> 1.403605186
A55: Sentinel Lighting | B55: RTSR - Connection | C55: kW | D55: 1.455244394 | F55: 132.2660924 | G55: =ROUND(D55*F55, 2) -> 192.48 | H55: =G55/1193942.1 -> 0.0001612138478 | I55: =H55*forecast_wholesale_lineplus -> 189.5292901 | J55: =IF(ISERROR(I55/F55), 0, I55/F55) -> 1.432939363
A56: Unmetered Scattered Load | B56: RTSR - Connection | C56: kWh | D56: 0.005736934847 | E56: 623814.7169 | G56: =ROUND(D56*E56, 2) -> 3578.78 | H56: =G56/1193942.1 -> 0.002997448536 | I56: =H56*forecast_wholesale_lineplus -> 3523.917461 | J56: =IF(ISERROR(I56/E56), 0, I56/E56) -> 0.005648980964

Sheet Sheet1

Sheet hidden1 (hidden)
A1: =IF('3. Rate Classes'!L17=1, '3. Rate Classes'!C17, "") -> Residential | B1: 1
A2: =IF('3. Rate Classes'!L18=1, '3. Rate Classes'!C18, "") -> General Service Less Than 50 kW | B2: 2
A3: =IF('3. Rate Classes'!L19=1, '3. Rate Classes'!C19, "") -> General Service 50 to 2,999 kW | B3: 3
A4: =IF('3. Rate Classes'!L20=1, '3. Rate Classes'!C20, "") -> General Service 3,000 to 4,999 kW | B4: 4
A5: =IF('3. Rate Classes'!L21=1, '3. Rate Classes'!C21, "") -> Street Lighting | B5: 5
A6: =IF('3. Rate Classes'!L22=1, '3. Rate Classes'!C22, "") -> Sentinel Lighting | B6: 6
A7: =IF('3. Rate Classes'!L23=1, '3. Rate Classes'!C23, "") -> Unmetered Scattered Load | B7: 7
A8: =IF('3. Rate Classes'!L24=1, '3. Rate Classes'!C24, "") ->  | B8: 8
A9: =IF('3. Rate Classes'!L25=1, '3. Rate Classes'!C25, "") ->  | B9: 9
A10: =IF('3. Rate Classes'!L26=1, '3. Rate Classes'!C26, "") ->  | B10: 10
A11: =IF('3. Rate Classes'!L27=1, '3. Rate Classes'!C27, "") ->  | B11: 11
A12: =IF('3. Rate Classes'!L28=1, '3. Rate Classes'!C28, "") ->  | B12: 12
A13: =IF('3. Rate Classes'!L29=1, '3. Rate Classes'!C29, "") ->  | B13: 13
A14: =IF('3. Rate Classes'!L30=1, '3. Rate Classes'!C30, "") ->  | B14: 14
A15: =IF('3. Rate Classes'!L31=1, '3. Rate Classes'!C31, "") ->  | B15: 15
A16: =IF('3. Rate Classes'!L32=1, '3. Rate Classes'!C32, "") ->  | B16: 16
A17: =IF('3. Rate Classes'!L33=1, '3. Rate Classes'!C33, "") ->  | B17: 17
A18: =IF('3. Rate Classes'!L34=1, '3. Rate Classes'!C34, "") ->  | B18: 18
A19: =IF('3. Rate Classes'!L35=1, '3. Rate Classes'!C35, "") ->  | B19: 19
A20: =IF('3. Rate Classes'!L36=1, '3. Rate Classes'!C36, "") ->  | B20: 20
A21: =IF('3. Rate Classes'!L37=1, '3. Rate Classes'!C37, "") ->  | B21: 21
A22: =IF('3. Rate Classes'!L38=1, '3. Rate Classes'!C38, "") ->  | B22: 22
